Workbook

Sheet المبيعات
A1: محطة النخلة للبترول | G1: قيمة المبيعات | I1: التوريد نقداً | K1: مصروفات | M1: المدينون | O1: التوريد عبر بنكك | Q1: رصيد العامل | T1: الوقود | U1: رصيد أول المدة | W1: الكمية الواردة | Y1: إجمالي المبيعات | AA1: الكمية المتبقية | AC1: سعر اللتر | AD1: القيمة الإجمالية | AG1: قيمة المبيعات | AH1: التوريد نقداً | AI1: مصروفات | AJ1: المدينون | AK1: بنكك | AL1: رصيد العامل | AN1: كنترول التحقق من تطابق الإدخالات بين تحليل البنود وتحليل الشهور
A2: تحليل حساب المبيعات والمواد | G2: =AG2 -> 1625681779 | I2: =AH2 -> 55759153 | K2: =AI2 -> 216813649 | M2: =AJ2 -> 85730951 | O2: =AK2 -> 1267444318 | Q2: =AL2 -> 11291 | T2: جاز | U2: 0 | W2: 45000 | Y2: =SUMIF($E$7:$E$1006,$T2,$AD$7:$AD$1006) -> 214636 | AA2: =IF(((U2+W2)-Y2)>0,(U2+W2)-Y2,0) -> 0 | AD2: =AA2*AC2 -> 0 | AG2: =AG1007 -> 1625681779 | AH2: 55759153 | AI2: 216813649 | AJ2: 85730951 | AK2: 1267444318 | AL2: 11291 | AN2: التحقق | AO2: =AG1007=AO10 -> TRUE | AP2: =AH1007=AP10 -> TRUE | AQ2: =AQ10=AI1007 -> TRUE | AR2: =AR10=AJ1007 -> TRUE | AS2: =AS10=AK1007 -> TRUE | AT2: =AL1007=AT10 -> TRUE | AV2: تحليل الحساب الشهري للمبيعات وتوريدات العمال | BF2: التحقق من تطابق الإدخالات بين الرصيد التحليلي للشهر والأستاذ العام
A3: =IF(AND(AA2>0,AA2<=1000),"الجاز على وشك النفاد",IF(AA2>1000,"الجاز متوفر","لا يوجد جاز")) -> لا يوجد جاز | D3: =IF(AND(AA3>0,AA3<=1000),"البنزين على وشك النفاد",IF(AA3>1000,"البنزين متوفر","لا يوجد بنزين")) -> لا يوجد بنزين | E3: =IF(AND(AE2>0,AE2<=1000),"الجاز على وشك النفاد",IF(AE2>1000,"الجاز متوفر","لا يوجد جاز")) -> لا يوجد جاز | H3: =IF(BH17=0,"","هناك خطبٌ ما ؛ لمعرفة الإشكال إضغط هنا") ->  | T3: بنزين | U3: 0 | W3: 44998 | Y3: =SUMIF($E$7:$E$1006,$T3,$AD$7:$AD$1006) -> 328392 | AA3: =IF(((U3+W3)-Y3)>0,(U3+W3)-Y3,0) -> 0 | AD3: =AA3*AC3 -> 0 | AN3: الحساب | AO3: مدين | AP3: دائن | AV3: السنه | AW3: الشهر | AX3: مدين | AY3: دائن | BD3: الرصيد | BF3: المقارنه بين الرصيد الشهري والأستاذ العام | BH3: =BF18=BH18 -> TRUE
A4: التاريخ | B4: السنه | C4: الشهر | D4: العامل | E4: الصنف | F4: ماكينه (1) جاز | L4: ماكينه (2) جاز | R4: الدوشكا ـ جاز | U4: ماكينه (3) بنزين | AA4: ماكينه (4) بنزين | AD4: إجمالي المبيعات | AE4: سعر اللتر | AF4: البيان | AG4: قيمة المبيعات (مدين) | AH4: التوريد (دائن) | AP4: نقداً | AQ4: مصروفات | AR4: المدينون | AS4: بنكك | AT4: رصيد العامل | AX4: إجمالي المبيعات | AY4: إجمالي التوريد النقدي | AZ4: المصروفات | BA4: الديون | BB4: إجمالي تحويلات بنكك | BC4: إجمالي الدائن | BF4: الأستاذ العام | BG4: الحالة | BH4: الفرق
F5: العداد الشمالي | I5: العداد الجنوبي | L5: العداد الشمالي | O5: العداد الجنوبي | U5: العداد الشمالي | X5: العداد الجنوبي | AN5: ودشرف | AO5: =SUMIF($D$7:$D$1006,$AN5,$AG$7:$AG$1006) -> 422355098 | AP5: =SUMIF($D$7:$D$1006,$AN5,AH$7:AH$1006) -> 9848200 | AQ5: 38708400 | AR5: 25893000 | AS5: 347940062.6 | AT5: -20436 | AV5: =IF($A$7<>"",B7,"") -> 2024 | AW5: =IF($A$7<>"",C7,"") -> 6 | AX5: =IF($AW5<>"",SUMIFS(AG$7:AG$1006,$B$7:$B$1006,$AV5,$C$7:$C$1006,$AW5),"") -> 44506098 | AY5: =IF($AW5<>"",SUMIFS(AH$7:AH$1006,$B$7:$B$1006,$AV5,$C$7:$C$1006,$AW5),"") -> 3682700 | AZ5: 5726550 | BA5: 5910000 | BB5: 29187015 | BC5: =IF(AW5<>"",SUM(AY5:BB5),"") -> 44506265 | BD5: =IFERROR(BC5-AX5,"") -> 167 | BF5: =IF(#REF!-#REF!>0,#REF!-#REF!,"") ->  | BG5: =IF(BF5<>"",IF(AX5<BF5,"الأستاذ العام أكبر",IF(AX5>BF5,"التحليل الشهري أكبر","")),"") ->  | BH5: =IF(BF5<>"",IF((BF5<>AX5),IF(BF5>AX5,BF5-AX5,AX5-BF5),""),"") -> 
F6: قبل | G6: بعد | H6: المبيعات | I6: قبل | J6: بعد | K6: المبيعات | L6: قبل | M6: بعد | N6: المبيعات | O6: قبل | P6: بعد | Q6: المبيعات | R6: قبل | S6: بعد | T6: المبيعات | U6: قبل | V6: بعد | W6: المبيعات | X6: قبل | Y6: بعد | Z6: المبيعات | AA6: قبل | AB6: بعد | AC6: المبيعات | AH6: نقداً | AI6: مصروفات | AJ6: المدينون | AK6: بنكك | AL6: رصيد العامل | AN6: كبشور | AO6: =SUMIF($D$7:$D$1006,$AN6,$AG$7:$AG$1006) -> 409708112 | AP6: 7237953 | AQ6: 42539000 | AR6: 29509000 | AS6: 330438876 | AT6: 16717 | AV6: =IFERROR(IF(AW5+1<=12,AV5,AV5+1),"") -> 2024 | AW6: =IF(AV6<>"",IF(AW5=12,1,AW5+1),"") -> 7 | AX6: =IF($AW6<>"",SUMIFS(AG$7:AG$1006,$B$7:$B$1006,$AV6,$C$7:$C$1006,$AW6),"") -> 387281326 | AY6: 17827953 | AZ6: 32892831 | BA6: 28048951 | BB6: 308507869.6 | BC6: =IF(AW6<>"",SUM(AY6:BB6),"") -> 387277604.6 | BD6: =IFERROR(BC6-AX6,"") -> -3721.4 | BF6: =IF(#REF!-#REF!>0,#REF!-#REF!,"") ->  | BG6: =IF(BF6<>"",IF(AX6<BF6,"الأستاذ العام أكبر",IF(AX6>BF6,"التحليل الشهري أكبر","")),"") ->  | BH6: =IF(BF6<>"",IF((BF6<>AX6),IF(BF6>AX6,BF6-AX6,AX6-BF6),""),"") -> 
A7: 2024-06-26 | B7: =IF(A7<>"",YEAR(A7),"") -> 2024 | C7: =IF(A7<>"",MONTH(A7),"") -> 6 | D7: ودشرف | E7: بنزين | F7: 5464577 | G7: 5464577 | H7: =IFERROR(G7-F7,"") -> 0 | I7: 5875887 | J7: 5875887 | K7: =IFERROR(J7-I7,"") -> 0 | L7: 63146 | M7: 63146 | N7: =IFERROR(M7-L7,"") -> 0 | O7: 96912 | P7: 96912 | Q7: =IFERROR(P7-O7,"") -> 0 | R7: 76524 | S7: 76524 | T7: =IFERROR(S7-R7,"") -> 0 | U7: 4073006 | V7: 4074178 | W7: =IFERROR(V7-U7,"") -> 1172 | X7: 2173296 | Y7: 2173584 | Z7: =IFERROR(Y7-X7,"") -> 288 | AA7: 218308 | AB7: 219727 | AC7: =IFERROR(AB7-AA7,"") -> 1419 | AD7: =IFERROR(IF(E7="توريده","",IF(E7="بنزين",W7+Z7+AC7,T7+Q7+N7+K7+H7)),"") -> 2879 | AE7: 2097 | AF7: جمله المبيعات | AG7: =IFERROR(ROUNDDOWN(IF(A7<>"",IF(E7="توريده","",AD7*AE7),""),0),"") -> 6037263 | AH7: 757000 | AI7: 127000 | AJ7: 1500000 | AK7: 3653263 | AL7: =IFERROR((AH7+AI7+AJ7+AK7)-AG7,"") -> 0 | AN7: بنجوس | AO7: =SUMIF($D$7:$D$1006,$AN7,$AG$7:$AG$1006) -> 424291653 | AP7: 12500000 | AQ7: 27443681 | AR7: 20405451 | AS7: 363958809 | AT7: 16288 | AV7: =IFERROR(IF(AW6+1<=12,AV6,AV6+1),"") -> 2024 | AW7: =IF(AV7<>"",IF(AW6=12,1,AW6+1),"") -> 8 | AX7: 468388614 | AY7: 19838200 | AZ7: 47278010 | BA7: 19224500 | BB7: 382099068 | BC7: 468439778 | BD7: 51164 | BF7: =IF(#REF!-#REF!>0,#REF!-#REF!,"") -> 
A8: 2024-06-27 | B8: =IF(A8<>"",YEAR(A8),"") -> 2024 | C8: =IF(A8<>"",MONTH(A8),"") -> 6 | D8: كبشور | E8: بنزين | F8: =IF($A8<>"",IF($E8<>"توريده",G7,0),"") -> 5464577 | G8: 5464577 | H8: =IFERROR(G8-F8,"") -> 0 | I8: =IF($A8<>"",IF($E8<>"توريده",J7,0),"") -> 5875887 | J8: =IF($E8<>"جاز",I8,"") -> 5875887 | K8: =IFERROR(J8-I8,"") -> 0 | L8: =IF($A8<>"",IF($E8<>"توريده",M7,0),"") -> 63146 | M8: =IF($E8<>"جاز",L8,"") -> 63146 | N8: =IFERROR(M8-L8,"") -> 0 | O8: =IF($A8<>"",IF($E8<>"توريده",P7,0),"") -> 96912 | P8: =IF($E8<>"جاز",O8,"") -> 96912 | Q8: =IFERROR(P8-O8,"") -> 0 | R8: =IF($A8<>"",IF($E8<>"توريده",S7,0),"") -> 76524 | S8: =IF($E8<>"جاز",R8,"") -> 76524 | T8: =IFERROR(S8-R8,"") -> 0 | U8: =IF($A8<>"",IF($E8<>"توريده",V7,0),"") -> 4074178 | V8: 4075972 | W8: =IFERROR(V8-U8,"") -> 1794 | X8: =IF($A8<>"",IF($E8<>"توريده",Y7,0),"") -> 2173584 | Y8: 2173844 | Z8: =IFERROR(Y8-X8,"") -> 260 | AA8: =IF($A8<>"",IF($E8<>"توريده",AB7,0),"") -> 219727 | AB8: 221093 | AC8: =IFERROR(AB8-AA8,"") -> 1366 | AD8: =IFERROR(IF(E8="توريده","",IF(E8="بنزين",W8+Z8+AC8,T8+Q8+N8+K8+H8)),"") -> 3420 | AE8: 2097 | AF8: جمله المبيعات | AG8: =IFERROR(ROUNDDOWN(IF(A8<>"",IF(E8="توريده","",AD8*AE8),""),0),"") -> 7171740 | AH8: 0 | AI8: 2545100 | AJ8: 300000 | AK8: 4326500 | AL8: -140 | AN8: محمدابدول | AO8: =SUMIF($D$7:$D$1006,$AN8,$AG$7:$AG$1006) -> 369326916 | AP8: 26173000 | AQ8: 108122568 | AR8: 9923500 | AS8: 225106570 | AT8: -1278 | AV8: 2024 | AW8: 9 | AX8: 531775327 | AY8: 14410300 | AZ8: 41083571 | BA8: 23197500 | BB8: 453102541 | BC8: 531793912 | BD8: 18585 | BF8: =IF(#REF!-#REF!>0,#REF!-#REF!,"") -> 
A9: 2024-06-28 | B9: 2024 | C9: 6 | D9: بنجوس | E9: بنزين | F9: =IF($A9<>"",IF($E9<>"توريده",G8,0),"") -> 5464577 | G9: =IF($E9<>"جاز",F9,"") -> 5464577 | H9: =IFERROR(G9-F9,"") -> 0 | I9: 5875887 | J9: 5875887 | K9: =IFERROR(J9-I9,"") -> 0 | L9: 63146 | M9: 63146 | N9: =IFERROR(M9-L9,"") -> 0 | O9: 96912 | P9: 96912 | Q9: =IFERROR(P9-O9,"") -> 0 | R9: 76524 | S9: 76524 | T9: =IFERROR(S9-R9,"") -> 0 | U9: =IF($A9<>"",IF($E9<>"توريده",V8,0),"") -> 4075972 | V9: 4077426 | W9: =IFERROR(V9-U9,"") -> 1454 | X9: 2173844 | Y9: 2174111 | Z9: =IFERROR(Y9-X9,"") -> 267 | AA9: 221093 | AB9: 222338 | AC9: =IFERROR(AB9-AA9,"") -> 1245 | AD9: =IFERROR(IF(E9="توريده","",IF(E9="بنزين",W9+Z9+AC9,T9+Q9+N9+K9+H9)),"") -> 2966 | AE9: 2097 | AF9: جمله المبيعات | AG9: 6219702 | AH9: 2080000 | AI9: 183050 | AJ9: 0 | AK9: 3956652 | AL9: 0 | AN9: إسحاق جعفر | AO9: =SUMIF($D$7:$D$1006,$AN9,$AG$7:$AG$1006) -> 0 | AP9: 0 | AQ9: 0 | AR9: 0 | AS9: 0 | AT9: 0 | AV9: 2024 | AW9: 10 | AX9: 193730414 | AY9: 0 | AZ9: 89832687 | BA9: 9350000 | BB9: 94547824 | BC9: 193730511 | BD9: 97 | BF9: =IF(#REF!-#REF!>0,#REF!-#REF!,"") -> 
A10: 2024-06-29 | B10: 2024 | C10: 6 | D10: بنجوس | E10: جاز | F10: =IF($A10<>"",IF($E10<>"توريده",G9,0),"") -> 5464577 | G10: 5465145 | H10: 568 | I10: 5875887 | J10: 5876709 | K10: 822 | L10: 63146 | M10: 63456 | N10: 310 | O10: 96912 | P10: 96977 | Q10: 65 | R10: 76524 | S10: 76923 | T10: 399 | U10: 4077426 | V10: =IF($A10<>"",IF($E10<>"بنزين",U10,""),"") -> 4077426 | W10: 0 | X10: 2174111 | Y10: =IF($A10<>"",IF($E10<>"بنزين",X10,""),"") -> 2174111 | Z10: 0 | AA10: 222338 | AB10: =IF($A10<>"",IF($E10<>"بنزين",AA10,""),"") -> 222338 | AC10: 0 | AD10: 2164 | AE10: 2094 | AF10: جمله المبيعات | AG10: 4531416 | AH10: 330000 | AI10: 50000 | AJ10: 70000 | AK10: 4081500 | AL10: 84 | AN10: الإجمالي | AO10: =SUM(AO5:AO9) -> 1625681779 | AP10: 55759153 | AQ10: 216813649 | AR10: 85730951 | AS10: 1267444318 | AT10: 11291 | AV10: 2024 | AW10: 11 | AX10: 0 | AY10: 0 | AZ10: 0 | BA10: 0 | BB10: 0 | BC10: 0 | BD10: 0 | BF10: =IF(#REF!-#REF!>0,#REF!-#REF!,"") -> 
A11: 2024-06-29 | B11: 2024 | C11: 6 | D11: ودشرف | E11: بنزين | F11: 5465145 | G11: 5465145 | H11: 0 | I11: 5876709 | J11: 5876709 | K11: 0 | L11: 63456 | M11: 63456 | N11: 0 | O11: 96977 | P11: 96977 | Q11: 0 | R11: 76923 | S11: 76923 | T11: 0 | U11: 4077426 | V11: 4079623 | W11: 2197 | X11: 2174111 | Y11: 2174465 | Z11: 354 | AA11: 222338 | AB11: 223582 | AC11: 1244 | AD11: 3795 | AE11: 2097 | AF11: جمله المبيعات | AG11: 7958115 | AH11: 0 | AI11: 76600 | AJ11: 550000 | AK11: 7331500 | AL11: -15 | AV11: 2024 | AW11: 12 | AX11: 0 | AY11: 0 | AZ11: 0 | BA11: 0 | BB11: 0 | BC11: 0 | BD11: 0 | BF11: =IF(#REF!-#REF!>0,#REF!-#REF!,"") -> 
A12: 2024-06-30 | B12: 2024 | C12: 6 | D12: ودشرف | E12: جاز | F12: 5465145 | G12: 5466098 | H12: 953 | I12: 5876709 | J12: 5877103 | K12: 394 | L12: 63456 | M12: 63560 | N12: 104 | O12: 96977 | P12: 97221 | Q12: 244 | R12: 76923 | S12: 77468 | T12: 545 | U12: 4079623 | V12: 4079623 | W12: 0 | X12: 2174465 | Y12: 2174465 | Z12: 0 | AA12: 223582 | AB12: 223582 | AC12: 0 | AD12: 2240 | AE12: 2094 | AF12: جمله المبيعات | AG12: 4690560 | AH12: 480000 | AI12: 0 | AJ12: 0 | AK12: 4210000 | AL12: -560 | AN12: التحقق | AO12: =AG1007=AO18 -> TRUE | AP12: =AH1007=AP18 -> TRUE | AQ12: =AQ18=AI1007 -> TRUE | AR12: =AR18=AJ1007 -> TRUE | AS12: =AS18=AK1007 -> TRUE | AT12: =AL1007=AT18 -> TRUE | AV12: 2025 | AW12: 1 | AX12: 0 | AY12: 0 | AZ12: 0 | BA12: 0 | BB12: 0 | BC12: 0 | BD12: 0 | BF12: =IF(#REF!-#REF!>0,#REF!-#REF!,"") -> 
A13: 2024-06-30 | B13: 2024 | C13: 6 | D13: كبشور | E13: بنزين | F13: 5466098 | G13: 5466098 | H13: 0 | I13: 5877103 | J13: 5877103 | K13: 0 | L13: 63560 | M13: 63560 | N13: 0 | O13: 97221 | P13: 97221 | Q13: 0 | R13: 77468 | S13: 77468 | T13: 0 | U13: 4079623 | V13: 4081503 | W13: 1880 | X13: 2174465 | Y13: 2174745 | Z13: 280 | AA13: 223582 | AB13: 225188 | AC13: 1606 | AD13: 3766 | AE13: 2097 | AF13: جمله المبيعات | AG13: 7897302 | AH13: 35700 | AI13: 2744800 | AJ13: 3490000 | AK13: 1627600 | AL13: 798 | AN13: الصنف | AO13: مدين | AP13: دائن | AV13: 2025 | AW13: 2 | AX13: 0 | AY13: 0 | AZ13: 0 | BA13: 0 | BB13: 0 | BC13: 0 | BD13: 0 | BF13: =IF(#REF!-#REF!>0,#REF!-#REF!,"") -> 
A14: 2024-07-01 | B14: 2024 | C14: 7 | D14: كبشور | E14: جاز | F14: 5466098 | G14: 5466992 | H14: 894 | I14: 5877103 | J14: 5878018 | K14: 915 | L14: 63560 | M14: 63896 | N14: 336 | O14: 97221 | P14: 97372 | Q14: 151 | R14: 77468 | S14: 77706 | T14: 238 | U14: 4081503 | V14: 4081503 | W14: 0 | X14: 2174745 | Y14: 2174745 | Z14: 0 | AA14: 225188 | AB14: 225188 | AC14: 0 | AD14: 2534 | AE14: 2094 | AF14: جمله المبيعات | AG14: 5306196 | AH14: 360000 | AI14: 45000 | AJ14: 250000 | AK14: 4651000 | AL14: -196 | AP14: نقداً | AQ14: مصروفات | AR14: الدائنون | AS14: الديون | AT14: رصيد العامل | AV14: 2025 | AW14: 3 | AX14: 0 | AY14: 0 | AZ14: 0 | BA14: 0 | BB14: 0 | BC14: 0 | BD14: 0 | BF14: =IF(#REF!-#REF!>0,#REF!-#REF!,"") -> 
A15: 2024-07-01 | B15: 2024 | C15: 7 | D15: بنجوس | E15: بنزين | F15: 5466992 | G15: 5466992 | H15: 0 | I15: 5878018 | J15: 5878018 | K15: 0 | L15: 63896 | M15: 63896 | N15: 0 | O15: 97372 | P15: 97372 | Q15: 0 | R15: 77706 | S15: 77706 | T15: 0 | U15: 4081503 | V15: 4083510 | W15: 2007 | X15: 2174745 | Y15: 2174968 | Z15: 223 | AA15: 225188 | AB15: 226507 | AC15: 1319 | AD15: 3549 | AE15: 2097 | AF15: جمله المبيعات | AG15: 7442253 | AH15: 0 | AI15: 1725400 | AJ15: 0 | AK15: 5717000 | AL15: 147 | AN15: جاز | AO15: =SUMIF($E$7:$E$1006,AN15,$AG$7:$AG$1006) -> 646818179 | AP15: =SUMIF($E$7:$E$1006,$AN15,AH$7:AH$1006) -> 21481900 | AQ15: 24851896 | AR15: 31890500 | AS15: 568611491.6 | AT15: =SUMIF($E$7:$E$1006,AN15,$AL$7:$AL$1006) -> 17608 | AV15: 2025 | AW15: 4 | AX15: 0 | AY15: 0 | AZ15: 0 | BA15: 0 | BB15: 0 | BC15: 0 | BD15: 0 | BF15: =IF(#REF!-#REF!>0,#REF!-#REF!,"") -> 
A16: 2024-07-02 | B16: 2024 | C16: 7 | D16: ودشرف | E16: بنزين | F16: 5466992 | G16: 5466992 | H16: 0 | I16: 5878018 | J16: 5878018 | K16: 0 | L16: 63896 | M16: 63896 | N16: 0 | O16: 97372 | P16: 97372 | Q16: 0 | R16: 77706 | S16: 77706 | T16: 0 | U16: 4083510 | V16: 4085505 | W16: 1995 | X16: 2174968 | Y16: 2175175 | Z16: 207 | AA16: 226507 | AB16: 227875 | AC16: 1368 | AD16: 3570 | AE16: 2097 | AF16: جمله المبيعات | AG16: 7486290 | AH16: 0 | AI16: 63000 | AJ16: 250000 | AK16: 7173000 | AL16: -290 | AN16: بنزين | AO16: =SUMIF($E$7:$E$1006,AN16,$AG$7:$AG$1006) -> 978863600 | AP16: 34277253 | AQ16: 191961753 | AR16: 53840451 | AS16: 698832826 | AT16: =SUMIF($E$7:$E$1006,AN16,$AL$7:$AL$1006) -> -6317 | AV16: 2025 | AW16: 5 | AX16: 0 | AY16: 0 | AZ16: 0 | BA16: 0 | BB16: 0 | BC16: 0 | BD16: 0 | BF16: =IF(#REF!-#REF!>0,#REF!-#REF!,"") -> 
A17: 2024-07-02 | B17: 2024 | C17: 7 | D17: بنجوس | E17: جاز | F17: 5466992 | G17: 5468280 | H17: 1288 | I17: 5878018 | J17: 5879152 | K17: 1134 | L17: 63896 | M17: 64147 | N17: 251 | O17: 97372 | P17: 97451 | Q17: 79 | R17: 77706 | S17: 79994 | T17: 2288 | U17: 4085505 | V17: 4085505 | W17: 0 | X17: 2175175 | Y17: 2175175 | Z17: 0 | AA17: 227875 | AB17: 227875 | AC17: 0 | AD17: 5040 | AE17: 2094 | AF17: جمله المبيعات | AG17: 10553760 | AH17: 0 | AI17: 20000 | AJ17: 1350000 | AK17: 9184000 | AL17: 240 | AN17: توريده | AO17: 0 | AP17: 0 | AQ17: 0 | AR17: 0 | AS17: 0 | AT17: =SUMIF($E$7:$E$1006,AN17,$AL$7:$AL$1006) -> 0 | AV17: الإجمالي | AX17: =SUM(AX5:AX16) -> 1625681779 | AY17: 55759153 | AZ17: 216813649 | BA17: 85730951 | BB17: 1267444318 | BC17: 1625748071 | BD17: 66291.6 | BF17: =SUM(BF5:BF16) ->  | BH17: =SUM(BH5:BH16) -> 
A18: 2024-07-03 | B18: 2024 | C18: 7 | D18: ودشرف | E18: جاز | F18: 5468280 | G18: 5469766 | H18: 1486 | I18: 5879152 | J18: 5879754 | K18: 602 | L18: 64147 | M18: 64273 | N18: 126 | O18: 97451 | P18: 97641 | Q18: 190 | R18: 79994 | S18: 80185 | T18: 191 | U18: 4085505 | V18: 4085505 | W18: 0 | X18: 2175175 | Y18: 2175175 | Z18: 0 | AA18: 227875 | AB18: 227875 | AC18: 0 | AD18: 2595 | AE18: 2094 | AF18: جمله المبيعات | AG18: 5433930 | AH18: 675200 | AI18: 0 | AJ18: 500000 | AK18: 4258000 | AL18: -730 | AN18: الإجمالي | AO18: =SUM(AO15:AO17) -> 1625681779 | AP18: 55759153 | AQ18: 216813649 | AR18: =SUM(AR15:AR17) -> 85730951 | AS18: 1267444318 | AT18: 11291
A19: 2024-07-03 | B19: 2024 | C19: 7 | D19: كبشور | E19: بنزين | F19: 5469766 | G19: 5469766 | H19: 0 | I19: 5879754 | J19: 5879754 | K19: 0 | L19: 64273 | M19: 64273 | N19: 0 | O19: 97641 | P19: 97641 | Q19: 0 | R19: 80185 | S19: 80185 | T19: 0 | U19: 4085505 | V19: 4087222 | W19: 1717 | X19: 2175175 | Y19: 2175379 | Z19: 204 | AA19: 227875 | AB19: 229462 | AC19: 1587 | AD19: 3508 | AE19: 2097 | AF19: جمله المبيعات | AG19: 7356276 | AH19: 817700 | AI19: 49000 | AJ19: 350000 | AK19: 6139576 | AL19: 0
A20: 2024-07-04 | B20: 2024 | C20: 7 | D20: بنجوس | E20: بنزين | F20: 5469766 | G20: 5469766 | H20: 0 | I20: 5879754 | J20: 5879754 | K20: 0 | L20: 64273 | M20: 64273 | N20: 0 | O20: 97641 | P20: 97641 | Q20: 0 | R20: 80185 | S20: 80185 | T20: 0 | U20: 4087222 | V20: 4089121 | W20: 1899 | X20: 2175379 | Y20: 2175640 | Z20: 261 | AA20: 229462 | AB20: 231181 | AC20: 1719 | AD20: 3879 | AE20: 2097 | AF20: جمله المبيعات | AG20: 8134263 | AH20: 5600000 | AI20: 488600 | AJ20: 0 | AK20: 2046000 | AL20: 337
A21: 2024-07-04 | B21: 2024 | C21: 7 | D21: كبشور | E21: جاز | F21: 5469766 | G21: 5470371 | H21: 605 | I21: 5879754 | J21: 5880741 | K21: 987 | L21: 64273 | M21: 64457 | N21: 184 | O21: 97641 | P21: 98153 | Q21: 512 | R21: 80185 | S21: 80233 | T21: 48 | U21: 4089121 | V21: 4089121 | W21: 0 | X21: 2175640 | Y21: 2175640 | Z21: 0 | AA21: 231181 | AB21: 231181 | AC21: 0 | AD21: 2336 | AE21: 2094 | AF21: جمله المبيعات | AG21: 4891584 | AH21: 2240000 | AI21: 0 | AJ21: 250000 | AK21: 2401500 | AL21: -84
A22: 2024-07-05 | B22: 2024 | C22: 7 | D22: بنجوس | E22: جاز | F22: 5470371 | G22: 5471429 | H22: 1058 | I22: 5880741 | J22: 5881850 | K22: 1109 | L22: 64457 | M22: 64632 | N22: 175 | O22: 98153 | P22: 98303 | Q22: 150 | R22: 80233 | S22: 80424 | T22: 191 | U22: 4089121 | V22: 4089121 | W22: 0 | X22: 2175640 | Y22: 2175640 | Z22: 0 | AA22: 231181 | AB22: 231181 | AC22: 0 | AD22: 2683 | AE22: 2094 | AF22: جمله المبيعات | AG22: 5618202 | AH22: 0 | AI22: 128372 | AJ22: 650000 | AK22: 4840128 | AL22: 298
A23: 2024-07-05 | B23: 2024 | C23: 7 | D23: ودشرف | E23: بنزين | F23: 5471429 | G23: 5471429 | H23: 0 | I23: 5881850 | J23: 5881850 | K23: 0 | L23: 64632 | M23: 64632 | N23: 0 | O23: 98303 | P23: 98303 | Q23: 0 | R23: 80424 | S23: 80424 | T23: 0 | U23: 4089121 | V23: 4090635 | W23: 1514 | X23: 2175640 | Y23: 2175824 | Z23: 184 | AA23: 231181 | AB23: 232606 | AC23: 1425 | AD23: 3123 | AE23: 2097 | AF23: جمله المبيعات | AG23: 6548931 | AH23: 0 | AI23: 4886200 | AJ23: 275000 | AK23: 1387000 | AL23: -731
A24: 2024-07-06 | B24: 2024 | C24: 7 | D24: كبشور | E24: بنزين | F24: 5471429 | G24: 5471429 | H24: 0 | I24: 5881850 | J24: 5881850 | K24: 0 | L24: 64632 | M24: 64632 | N24: 0 | O24: 98303 | P24: 98303 | Q24: 0 | R24: 80424 | S24: 80424 | T24: 0 | U24: 4090635 | V24: 4092727 | W24: 2092 | X24: 2175824 | Y24: 2176125 | Z24: 301 | AA24: 232606 | AB24: 234162 | AC24: 1556 | AD24: 3949 | AE24: 2097 | AF24: جمله المبيعات | AG24: 8281053 | AH24: 400053 | AI24: 756000 | AJ24: 837000 | AK24: 6288000 | AL24: 0
A25: 2024-07-06 | B25: 2024 | C25: 7 | D25: ودشرف | E25: جاز | F25: 5471429 | G25: 5473480 | H25: 2051 | I25: 5881850 | J25: 5882636 | K25: 786 | L25: 64632 | M25: 64788 | N25: 156 | O25: 98303 | P25: 98702 | Q25: 399 | R25: 80424 | S25: 80615 | T25: 191 | U25: 4092727 | V25: 4092727 | W25: 0 | X25: 2176125 | Y25: 2176125 | Z25: 0 | AA25: 234162 | AB25: 234162 | AC25: 0 | AD25: 3583 | AE25: 2094 | AF25: جمله المبيعات | AG25: 7502802 | AH25: 0 | AI25: 30000 | AJ25: 1650000 | AK25: 5822000 | AL25: -802
A26: 2024-07-07 | B26: 2024 | C26: 7 | D26: كبشور | E26: جاز | F26: 5473480 | G26: 5474182 | H26: 702 | I26: 5882636 | J26: 5883890 | K26: 1254 | L26: 64788 | M26: 65334 | N26: 546 | O26: 98702 | P26: 99291 | Q26: 589 | R26: 80615 | S26: 80677 | T26: 62 | U26: 4092727 | V26: 4092727 | W26: 0 | X26: 2176125 | Y26: 2176125 | Z26: 0 | AA26: 234162 | AB26: 234162 | AC26: 0 | AD26: 3153 | AE26: 2094 | AF26: جمله المبيعات | AG26: 6602382 | AH26: 0 | AI26: 1550000 | AJ26: 250000 | AK26: 4802000 | AL26: -382
A27: 2024-07-07 | B27: 2024 | C27: 7 | D27: بنجوس | E27: بنزين | F27: 5474182 | G27: 5474182 | H27: 0 | I27: 5883890 | J27: 5883890 | K27: 0 | L27: 65334 | M27: 65334 | N27: 0 | O27: 99291 | P27: 99291 | Q27: 0 | R27: 80677 | S27: 80677 | T27: 0 | U27: 4092727 | V27: 4094526 | W27: 1799 | X27: 2176125 | Y27: 2176503 | Z27: 378 | AA27: 234162 | AB27: 235827 | AC27: 1665 | AD27: 3842 | AE27: 2097 | AF27: جمله المبيعات | AG27: 8056674 | AH27: 0 | AI27: 1644300 | AJ27: 840000 | AK27: 5572500 | AL27: 126
A28: 2024-07-08 | B28: 2024 | C28: 7 | D28: بنجوس | E28: جاز | F28: 5474182 | G28: 5475230 | H28: 1048 | I28: 5883890 | J28: 5885117 | K28: 1227 | L28: 65334 | M28: 65719 | N28: 385 | O28: 99291 | P28: 99343 | Q28: 52 | R28: 80677 | S28: 81160 | T28: 483 | U28: 4094526 | V28: 4094526 | W28: 0 | X28: 2176503 | Y28: 2176503 | Z28: 0 | AA28: 235827 | AB28: 235827 | AC28: 0 | AD28: 3195 | AE28: 2094 | AF28: جمله المبيعات | AG28: 6690330 | AH28: 0 | AI28: 0 | AJ28: 0 | AK28: 6690500 | AL28: 170
A29: 2024-07-08 | B29: 2024 | C29: 7 | D29: ودشرف | E29: بنزين | F29: 5475230 | G29: 5475230 | H29: 0 | I29: 5885117 | J29: 5885117 | K29: 0 | L29: 65719 | M29: 65719 | N29: 0 | O29: 99343 | P29: 99343 | Q29: 0 | R29: 81160 | S29: 81160 | T29: 0 | U29: 4094526 | V29: 4096214 | W29: 1688 | X29: 2176503 | Y29: 2176686 | Z29: 183 | AA29: 235827 | AB29: 237044 | AC29: 1217 | AD29: 3088 | AE29: 2097 | AF29: جمله المبيعات | AG29: 6475536 | AH29: 137000 | AI29: 567400 | AJ29: 1250000 | AK29: 4521136 | AL29: 0
A30: 2024-07-09 | B30: 2024 | C30: 7 | D30: ودشرف | E30: جاز | F30: 5475230 | G30: 5477553 | H30: 2323 | I30: 5885117 | J30: 5886079 | K30: 962 | L30: 65719 | M30: 65845 | N30: 126 | O30: 99343 | P30: 99945 | Q30: 602 | R30: 81160 | S30: 81255 | T30: 95 | U30: 4096214 | V30: 4096214 | W30: 0 | X30: 2176686 | Y30: 2176686 | Z30: 0 | AA30: 237044 | AB30: 237044 | AC30: 0 | AD30: 4108 | AE30: 2094 | AF30: جمله المبيعات | AG30: 8602152 | AH30: 0 | AI30: 0 | AJ30: 1260000 | AK30: 7342000 | AL30: -152
A31: 2024-07-09 | B31: 2024 | C31: 7 | D31: كبشور | E31: بنزين | F31: 5477553 | G31: 5477553 | H31: 0 | I31: 5886079 | J31: 5886079 | K31: 0 | L31: 65845 | M31: 65845 | N31: 0 | O31: 99945 | P31: 99945 | Q31: 0 | R31: 81255 | S31: 81255 | T31: 0 | U31: 4096214 | V31: 4098329 | W31: 2115 | X31: 2176686 | Y31: 2177085 | Z31: 399 | AA31: 237044 | AB31: 238452 | AC31: 1408 | AD31: 3922 | AE31: 2097 | AF31: جمله المبيعات | AG31: 8224434 | AH31: 0 | AI31: 437400 | AJ31: 700000 | AK31: 7087000 | AL31: -34
A32: 2024-07-10 | B32: 2024 | C32: 7 | D32: كبشور | E32: جاز | F32: 5477553 | G32: 5479014 | H32: 1461 | I32: 5886079 | J32: 5886813 | K32: 734 | L32: 65845 | M32: 66217 | N32: 372 | O32: 99945 | P32: 100879 | Q32: 934 | R32: 81255 | S32: 81455 | T32: 200 | U32: 4098329 | V32: 4098329 | W32: 0 | X32: 2177085 | Y32: 2177085 | Z32: 0 | AA32: 238452 | AB32: 238452 | AC32: 0 | AD32: 3701 | AE32: 2094 | AF32: جمله المبيعات | AG32: 7749894 | AH32: 0 | AI32: 9000 | AJ32: 250000 | AK32: 7491000 | AL32: 106
A33: 2024-07-10 | B33: 2024 | C33: 7 | D33: بنجوس | E33: بنزين | F33: 5479014 | G33: 5479014 | H33: 0 | I33: 5886813 | J33: 5886813 | K33: 0 | L33: 66217 | M33: 66217 | N33: 0 | O33: 100879 | P33: 100879 | Q33: 0 | R33: 81455 | S33: 81455 | T33: 0 | U33: 4098329 | V33: 4099859 | W33: 1530 | X33: 2177085 | Y33: 2177217 | Z33: 132 | AA33: 238452 | AB33: 239396 | AC33: 944 | AD33: 2606 | AE33: 2097 | AF33: جمله المبيعات | AG33: 5464782 | AH33: 0 | AI33: 35200 | AJ33: 0 | AK33: 5430000 | AL33: 418
A34: 2024-07-11 | B34: 2024 | C34: 7 | D34: بنجوس | E34: جاز | F34: 5479014 | G34: 5480123 | H34: 1109 | I34: 5886813 | J34: 5887999 | K34: 1186 | L34: 66217 | M34: 66949 | N34: 732 | O34: 100879 | P34: 101287 | Q34: 408 | R34: 81455 | S34: 81789 | T34: 334 | U34: 4099859 | V34: 4099859 | W34: 0 | X34: 2177217 | Y34: 2177217 | Z34: 0 | AA34: 239396 | AB34: 239396 | AC34: 0 | AD34: 3769 | AE34: 2094 | AF34: جمله المبيعات | AG34: 7892286 | AH34: 0 | AI34: 26000 | AJ34: 40000 | AK34: 7826500 | AL34: 214
A35: 2024-07-11 | B35: 2024 | C35: 7 | D35: ودشرف | E35: بنزين | F35: 5480123 | G35: 5480123 | H35: 0 | I35: 5887999 | J35: 5887999 | K35: 0 | L35: 66949 | M35: 66949 | N35: 0 | O35: 101287 | P35: 101287 | Q35: 0 | R35: 81789 | S35: 81789 | T35: 0 | U35: 4099859 | V35: 4101966 | W35: 2107 | X35: 2177217 | Y35: 2177332 | Z35: 115 | AA35: 239396 | AB35: 241006 | AC35: 1610 | AD35: 3832 | AE35: 2097 | AF35: جمله المبيعات | AG35: 8035704 | AH35: 0 | AI35: 648000 | AJ35: 400000 | AK35: 6987704 | AL35: 0
A36: 2024-07-12 | B36: 2024 | C36: 7 | D36: كبشور | E36: بنزين | F36: 5480123 | G36: 5480123 | H36: 0 | I36: 5887999 | J36: 5887999 | K36: 0 | L36: 66949 | M36: 66949 | N36: 0 | O36: 101287 | P36: 101287 | Q36: 0 | R36: 81789 | S36: 81789 | T36: 0 | U36: 4101966 | V36: 4103126 | W36: 1160 | X36: 2177332 | Y36: 2177994 | Z36: 662 | AA36: 241006 | AB36: 242198 | AC36: 1192 | AD36: 3014 | AE36: 2097 | AF36: جمله المبيعات | AG36: 6320358 | AH36: 500000 | AI36: 1635000 | AJ36: 0 | AK36: 4185000 | AL36: -358
A37: 2024-07-13 | B37: 2024 | C37: 7 | D37: بنجوس | E37: بنزين | F37: 5480123 | G37: 5480123 | H37: 0 | I37: 5887999 | J37: 5887999 | K37: 0 | L37: 66949 | M37: 66949 | N37: 0 | O37: 101287 | P37: 101287 | Q37: 0 | R37: 81789 | S37: 81789 | T37: 0 | U37: 4103126 | V37: 4105458 | W37: 2332 | X37: 2177994 | Y37: 2178927 | Z37: 933 | AA37: 242198 | AB37: 244808 | AC37: 2610 | AD37: 5875 | AE37: 2097 | AF37: جمله المبيعات | AG37: 12319875 | AH37: 1900000 | AI37: 1673200 | AJ37: 430000 | AK37: 8316500 | AL37: -175
A38: 2024-07-14 | B38: 2024 | C38: 7 | D38: ودشرف | E38: بنزين | F38: 5480123 | G38: 5480123 | H38: 0 | I38: 5887999 | J38: 5887999 | K38: 0 | L38: 66949 | M38: 66949 | N38: 0 | O38: 101287 | P38: 101287 | Q38: 0 | R38: 81789 | S38: 81789 | T38: 0 | U38: 4105458 | V38: 4106279 | W38: 821 | X38: 2178927 | Y38: 2179344 | Z38: 417 | AA38: 244808 | AB38: 245365 | AC38: 557 | AD38: 1795 | AE38: 2097 | AF38: جمله المبيعات | AG38: 3764115 | AH38: 0 | AI38: 55000 | AJ38: 0 | AK38: 3709000 | AL38: -115
A39: 2024-07-16 | B39: 2024 | C39: 7 | D39: بنجوس | E39: بنزين | F39: 5480123 | G39: 5480123 | H39: 0 | I39: 5887999 | J39: 5887999 | K39: 0 | L39: 66949 | M39: 66949 | N39: 0 | O39: 101287 | P39: 101287 | Q39: 0 | R39: 81789 | S39: 81789 | T39: 0 | U39: 4106279 | V39: 4108297 | W39: 2018 | X39: 2179344 | Y39: 2179673 | Z39: 329 | AA39: 245365 | AB39: 245369 | AC39: 4 | AD39: 2351 | AE39: 2810 | AF39: جمله المبيعات | AG39: 6606310 | AH39: 0 | AI39: 1692359 | AJ39: 797451 | AK39: 4116500 | AL39: 0
A40: 2024-07-17 | B40: 2024 | C40: 7 | D40: ودشرف | E40: جاز | F40: 5480123 | G40: 5480243 | H40: 120 | I40: 5887999 | J40: 5888070 | K40: 71 | L40: 66949 | M40: 66967 | N40: 18 | O40: 101287 | P40: 101287 | Q40: 0 | R40: 21789 | S40: 21789 | T40: 0 | U40: 4108297 | V40: 4108297 | W40: 0 | X40: 2179673 | Y40: 2179673 | Z40: 0 | AA40: 245369 | AB40: 245369 | AC40: 0 | AD40: 209 | AE40: 2685.3 | AF40: جمله المبيعات | AG40: 561227 | AH40: 0 | AI40: 0 | AJ40: 0 | AK40: 561227 | AL40: 0
A41: 2024-07-17 | B41: 2024 | C41: 7 | D41: بنجوس | E41: جاز | F41: 5480243 | G41: 5480694 | H41: 451 | I41: 5888070 | J41: 5888361 | K41: 291 | L41: 66967 | M41: 67039 | N41: 72 | O41: 101287 | P41: 101287 | Q41: 0 | R41: 21789 | S41: 21789 | T41: 0 | U41: 4108297 | V41: 4108297 | W41: 0 | X41: 2179673 | Y41: 2179673 | Z41: 0 | AA41: 245369 | AB41: 245369 | AC41: 0 | AD41: 814 | AE41: 2785.3 | AF41: جمله المبيعات | AG41: 2267234 | AH41: 0 | AI41: 0 | AJ41: 0 | AK41: 2267500 | AL41: 266
A42: 2024-07-17 | B42: 2024 | C42: 7 | D42: ودشرف | E42: بنزين | F42: 5480694 | G42: 5480694 | H42: 0 | I42: 5888361 | J42: 5888361 | K42: 0 | L42: 67039 | M42: 67039 | N42: 0 | O42: 101287 | P42: 101287 | Q42: 0 | R42: 21789 | S42: 21789 | T42: 0 | U42: 4108297 | V42: 4110704 | W42: 2407 | X42: 2179673 | Y42: 2179813 | Z42: 140 | AA42: 245370 | AB42: 245496 | AC42: 126 | AD42: 2673 | AE42: 2810.7 | AF42: جمله المبيعات | AG42: 7513001 | AH42: 0 | AI42: 2045400 | AJ42: 250000 | AK42: 5217601 | AL42: 0
A43: 2024-07-18 | B43: 2024 | C43: 7 | D43: ودشرف | E43: جاز | F43: 5480694 | G43: 5481557 | H43: 863 | I43: 5888361 | J43: 5889566 | K43: 1205 | L43: 67039 | M43: 67283 | N43: 244 | O43: 101287 | P43: 101287 | Q43: 0 | R43: 81789 | S43: 81789 | T43: 0 | U43: 4110704 | V43: 4110704 | W43: 0 | X43: 2179813 | Y43: 2179813 | Z43: 0 | AA43: 245496 | AB43: 245496 | AC43: 0 | AD43: 2312 | AE43: 2785.3 | AF43: جمله المبيعات | AG43: 6439613 | AH43: 0 | AI43: 44900 | AJ43: 283000 | AK43: 6112000 | AL43: 287
A44: 2024-07-18 | B44: 2024 | C44: 7 | D44: كبشور | E44: بنزين | F44: 5481557 | G44: 5481557 | H44: 0 | I44: 5889566 | J44: 5889566 | K44: 0 | L44: 67283 | M44: 67283 | N44: 0 | O44: 101287 | P44: 101287 | Q44: 0 | R44: 81789 | S44: 81789 | T44: 0 | U44: 4110704 | V44: 4113205 | W44: 2501 | X44: 2179813 | Y44: 2180287 | Z44: 474 | AA44: 245496 | AB44: 245496 | AC44: 0 | AD44: 2975 | AE44: 2810 | AF44: جمله المبيعات | AG44: 8359750 | AH44: 0 | AI44: 853000 | AJ44: 940000 | AK44: 6567000 | AL44: 250
A45: 2024-07-19 | B45: 2024 | C45: 7 | D45: كبشور | E45: جاز | F45: 5481557 | G45: 5482178 | H45: 621 | I45: 5889566 | J45: 5890012 | K45: 446 | L45: 67283 | M45: 67668 | N45: 385 | O45: 101287 | P45: 101307 | Q45: 20 | R45: 81789 | S45: 81991 | T45: 202 | U45: 4113205 | V45: 4113205 | W45: 0 | X45: 2180287 | Y45: 2180287 | Z45: 0 | AA45: 245496 | AB45: 245496 | AC45: 0 | AD45: 1674 | AE45: 2785.3 | AF45: جمله المبيعات | AG45: 4662592 | AH45: 0 | AI45: 46000 | AJ45: 2064000 | AK45: 2552500 | AL45: -92
A46: 2024-07-19 | B46: 2024 | C46: 7 | D46: بنجوس | E46: بنزين | F46: 5482178 | G46: 5482178 | H46: 0 | I46: 5890012 | J46: 5890012 | K46: 0 | L46: 67668 | M46: 67668 | N46: 0 | O46: 101307 | P46: 101307 | Q46: 0 | R46: 81991 | S46: 81991 | T46: 0 | U46: 4113205 | V46: 4114685 | W46: 1480 | X46: 2180287 | Y46: 2180537 | Z46: 250 | AA46: 245496 | AB46: 246605 | AC46: 1109 | AD46: 2839 | AE46: 2810 | AF46: جمله المبيعات | AG46: 7977590 | AH46: 0 | AI46: 262300 | AJ46: 1200000 | AK46: 6515500 | AL46: 210
A47: 2024-07-20 | B47: 2024 | C47: 7 | D47: بنجوس | E47: جاز | F47: 5482178 | G47: 5482886 | H47: 708 | I47: 5890012 | J47: 5891355 | K47: 1343 | L47: 67668 | M47: 67814 | N47: 146 | O47: 101307 | P47: 101609 | Q47: 302 | R47: 81991 | S47: 82191 | T47: 200 | U47: 4114685 | V47: 4114685 | W47: 0 | X47: 2180537 | Y47: 2180537 | Z47: 0 | AA47: 246605 | AB47: 246605 | AC47: 0 | AD47: 2699 | AE47: 2785.3 | AF47: جمله المبيعات | AG47: 7517524 | AH47: 540000 | AI47: 18000 | AJ47: 370000 | AK47: 6590500 | AL47: 976
A48: 2024-07-20 | B48: 2024 | C48: 7 | D48: ودشرف | E48: بنزين | F48: 5482886 | G48: 5482886 | H48: 0 | I48: 5891355 | J48: 5891355 | K48: 0 | L48: 67814 | M48: 67814 | N48: 0 | O48: 101609 | P48: 101609 | Q48: 0 | R48: 82191 | S48: 82191 | T48: 0 | U48: 4114685 | V48: 4116128 | W48: 1443 | X48: 2180537 | Y48: 2180688 | Z48: 151 | AA48: 246605 | AB48: 248329 | AC48: 1724 | AD48: 3318 | AE48: 2810 | AF48: جمله المبيعات | AG48: 9323580 | AH48: 0 | AI48: 28200 | AJ48: 474500 | AK48: 8820000 | AL48: -880
A49: 2024-07-21 | B49: 2024 | C49: 7 | D49: ودشرف | E49: جاز | F49: 5482886 | G49: 5483903 | H49: 1017 | I49: 5891355 | J49: 5891824 | K49: 469 | L49: 67814 | M49: 67821 | N49: 7 | O49: 101609 | P49: 101738 | Q49: 129 | R49: 82191 | S49: 82191 | T49: 0 | U49: 4116128 | V49: 4116128 | W49: 0 | X49: 2180688 | Y49: 2180688 | Z49: 0 | AA49: 248329 | AB49: 248329 | AC49: 0 | AD49: 1622 | AE49: 2785.3 | AF49: جمله المبيعات | AG49: 4517756 | AH49: 0 | AI49: 0 | AJ49: 0 | AK49: 4517756.6 | AL49: 0
A50: 2024-07-21 | B50: 2024 | C50: 7 | D50: كبشور | E50: بنزين | F50: 5483903 | G50: 5483903 | H50: 0 | I50: 5891824 | J50: 5891824 | K50: 0 | L50: 67821 | M50: 67821 | N50: 0 | O50: 101738 | P50: 101738 | Q50: 0 | R50: 82191 | S50: 82191 | T50: 0 | U50: 4116128 | V50: 4117092 | W50: 964 | X50: 2180688 | Y50: 2180915 | Z50: 227 | AA50: 248329 | AB50: 248867 | AC50: 538 | AD50: 1729 | AE50: 2810 | AF50: جمله المبيعات | AG50: 4858490 | AH50: 0 | AI50: 16000 | AJ50: 2450000 | AK50: 2389500 | AL50: -2990
A51: 2024-07-22 | B51: 2024 | C51: 7 | D51: بنجوس | E51: بنزين | F51: 5483903 | G51: 5483903 | H51: 0 | I51: 5891824 | J51: 5891824 | K51: 0 | L51: 67821 | M51: 67821 | N51: 0 | O51: 101738 | P51: 101738 | Q51: 0 | R51: 82191 | S51: 82191 | T51: 0 | U51: 4117092 | V51: 4118558 | W51: 1466 | X51: 2180915 | Y51: 2181116 | Z51: 201 | AA51: 248867 | AB51: 249860 | AC51: 993 | AD51: 2660 | AE51: 3304 | AF51: جمله المبيعات | AG51: 8788640 | AH51: 0 | AI51: 3527800 | AJ51: 360000 | AK51: 4901000 | AL51: 160
A52: 2024-07-22 | B52: 2024 | C52: 7 | D52: كبشور | E52: جاز | F52: 5483903 | G52: 5485142 | H52: 1239 | I52: 5891824 | J52: 5892723 | K52: 899 | L52: 67821 | M52: 68272 | N52: 451 | O52: 101738 | P52: 101946 | Q52: 208 | R52: 82191 | S52: 82859 | T52: 668 | U52: 4118558 | V52: 4118558 | W52: 0 | X52: 2181116 | Y52: 2181116 | Z52: 0 | AA52: 249860 | AB52: 249860 | AC52: 0 | AD52: 3465 | AE52: 3296.58 | AF52: جمله المبيعات | AG52: 11422649 | AH52: 430000 | AI52: 65000 | AJ52: 1030000 | AK52: 9897500 | AL52: -149
A53: 2024-07-23 | B53: 2024 | C53: 7 | D53: بنجوس | E53: جاز | F53: 5485142 | G53: 5485998 | H53: 856 | I53: 5892723 | J53: 5893711 | K53: 988 | L53: 68272 | M53: 68345 | N53: 73 | O53: 101946 | P53: 101970 | Q53: 24 | R53: 82859 | S53: 82859 | T53: 0 | U53: 4118558 | V53: 4118558 | W53: 0 | X53: 2181116 | Y53: 2181116 | Z53: 0 | AA53: 249860 | AB53: 249860 | AC53: 0 | AD53: 1941 | AE53: 3296.58 | AF53: جمله المبيعات | AG53: 6398661 | AH53: 0 | AI53: 0 | AJ53: 1320000 | AK53: 5079000 | AL53: 339
A54: 2024-07-23 | B54: 2024 | C54: 7 | D54: ودشرف | E54: بنزين | F54: 5485998 | G54: 5485998 | H54: 0 | I54: 5893711 | J54: 5893711 | K54: 0 | L54: 68345 | M54: 68345 | N54: 0 | O54: 101970 | P54: 101970 | Q54: 0 | R54: 82859 | S54: 82859 | T54: 0 | U54: 4118558 | V54: 4119880 | W54: 1322 | X54: 2181116 | Y54: 2181440 | Z54: 324 | AA54: 249860 | AB54: 251114 | AC54: 1254 | AD54: 2900 | AE54: 3304 | AF54: جمله المبيعات | AG54: 9581600 | AH54: 485000 | AI54: 2082300 | AJ54: 825000 | AK54: 6190000 | AL54: 700
A55: 2024-07-24 | B55: 2024 | C55: 7 | D55: ودشرف | E55: جاز | F55: 5485998 | G55: 5487634 | H55: 1636 | I55: 5893711 | J55: 5894544 | K55: 833 | L55: 68345 | M55: 68345 | N55: 0 | O55: 101970 | P55: 101970 | Q55: 0 | R55: 82859 | S55: 82859 | T55: 0 | U55: 4119880 | V55: 4119880 | W55: 0 | X55: 2181440 | Y55: 2181440 | Z55: 0 | AA55: 251114 | AB55: 251114 | AC55: 0 | AD55: 2469 | AE55: 3296.58 | AF55: جمله المبيعات | AG55: 8139256 | AH55: 0 | AI55: 1680000 | AJ55: 260000 | AK55: 6199000 | AL55: -256
A56: 2024-07-25 | B56: 2024 | C56: 7 | D56: كبشور | E56: جاز | F56: 5487634 | G56: 5488249 | H56: 615 | I56: 5894544 | J56: 5896463 | K56: 1919 | L56: 68354 | M56: 68390 | N56: 36 | O56: 101970 | P56: 101970 | Q56: 0 | R56: 82859 | S56: 82859 | T56: 0 | U56: 4119880 | V56: 4119880 | W56: 0 | X56: 2181440 | Y56: 2181440 | Z56: 0 | AA56: 251114 | AB56: 251114 | AC56: 0 | AD56: 2570 | AE56: 3296.58 | AF56: جمله المبيعات | AG56: 8472210 | AH56: 0 | AI56: 45000 | AJ56: 770000 | AK56: 7657000 | AL56: -210
A57: 2024-07-25 | B57: 2024 | C57: 7 | D57: بنجوس | E57: بنزين | F57: 5488249 | G57: 5488249 | H57: 0 | I57: 5896463 | J57: 5896463 | K57: 0 | L57: 68390 | M57: 68390 | N57: 0 | O57: 101970 | P57: 101970 | Q57: 0 | R57: 82859 | S57: 82859 | T57: 0 | U57: 4119880 | V57: 4120231 | W57: 351 | X57: 2181440 | Y57: 2181562 | Z57: 122 | AA57: 251114 | AB57: 251475 | AC57: 361 | AD57: 834 | AE57: 3304 | AF57: جمله المبيعات | AG57: 2755536 | AH57: 0 | AI57: 93000 | AJ57: 0 | AK57: 2663000 | AL57: 464
A58: 2024-07-26 | B58: 2024 | C58: 7 | D58: بنجوس | E58: جاز | F58: 5488249 | G58: 5488820 | H58: 571 | I58: 5896463 | J58: 5897366 | K58: 903 | L58: 68390 | M58: 68390 | N58: 0 | O58: 101970 | P58: 101970 | Q58: 0 | R58: 82859 | S58: 82859 | T58: 0 | U58: 4120231 | V58: 4120231 | W58: 0 | X58: 2181562 | Y58: 2181562 | Z58: 0 | AA58: 251475 | AB58: 251475 | AC58: 0 | AD58: 1474 | AE58: 3296.58 | AF58: جمله المبيعات | AG58: 4859158 | AH58: 0 | AI58: 0 | AJ58: 0 | AK58: 4859500 | AL58: 342
A59: 2024-07-26 | B59: 2024 | C59: 7 | D59: كبشور | E59: بنزين | F59: 5488820 | G59: 5488820 | H59: 0 | I59: 5897366 | J59: 5897366 | K59: 0 | L59: 68390 | M59: 68390 | N59: 0 | O59: 101970 | P59: 101970 | Q59: 0 | R59: 82859 | S59: 82859 | T59: 0 | U59: 4120231 | V59: 4121915 | W59: 1684 | X59: 2181562 | Y59: 2181710 | Z59: 148 | AA59: 251475 | AB59: 252331 | AC59: 856 | AD59: 2688 | AE59: 3304 | AF59: جمله المبيعات | AG59: 8881152 | AH59: 0 | AI59: 220500 | AJ59: 0 | AK59: 8660000 | AL59: -652
A60: 2024-07-27 | B60: 2024 | C60: 7 | D60: ودشرف | E60: بنزين | F60: 5488820 | G60: 5488820 | H60: 0 | I60: 5897366 | J60: 5897366 | K60: 0 | L60: 68390 | M60: 68390 | N60: 0 | O60: 101970 | P60: 101970 | Q60: 0 | R60: 82859 | S60: 82859 | T60: 0 | U60: 4121915 | V60: 4123669 | W60: 1754 | X60: 2181710 | Y60: 2181888 | Z60: 178 | AA60: 252331 | AB60: 253441 | AC60: 1110 | AD60: 3042 | AE60: 3304 | AF60: جمله المبيعات | AG60: 10050768 | AH60: 0 | AI60: 241000 | AJ60: 1040000 | AK60: 8769000 | AL60: -768
A61: 2024-07-27 | B61: 2024 | C61: 7 | D61: محمدابدول | E61: جاز | F61: 5488820 | G61: 5489278 | H61: 458 | I61: 5897366 | J61: 5898185 | K61: 819 | L61: 68390 | M61: 68746 | N61: 356 | O61: 101970 | P61: 101997 | Q61: 27 | R61: 82859 | S61: 82859 | T61: 0 | U61: 4123669 | V61: 4123669 | W61: 0 | X61: 2181888 | Y61: 2181888 | Z61: 0 | AA61: 253441 | AB61: 253441 | AC61: 0 | AD61: 1660 | AE61: 3296.5 | AF61: جمله المبيعات | AG61: 5472190 | AH61: 1855000 | AI61: 0 | AJ61: 0 | AK61: 3617190 | AL61: 0
A62: 2024-07-28 | B62: 2024 | C62: 7 | D62: محمدابدول | E62: بنزين | F62: 5489278 | G62: 5489278 | H62: 0 | I62: 5898185 | J62: 5898185 | K62: 0 | L62: 68746 | M62: 68746 | N62: 0 | O62: 101997 | P62: 101997 | Q62: 0 | R62: 82859 | S62: 82859 | T62: 0 | U62: 4123669 | V62: 4124891 | W62: 1222 | X62: 2181888 | Y62: 2181981 | Z62: 93 | AA62: 253441 | AB62: 253786 | AC62: 345 | AD62: 1660 | AE62: 3304 | AF62: جمله المبيعات | AG62: 5484640 | AH62: 121500 | AI62: 150000 | AJ62: 0 | AK62: 5213240 | AL62: 100
A63: 2024-07-28 | B63: 2024 | C63: 7 | D63: ودشرف | E63: جاز | F63: 5489278 | G63: 5490141 | H63: 863 | I63: 5898185 | J63: 5898663 | K63: 478 | L63: 68746 | M63: 68776 | N63: 30 | O63: 101997 | P63: 102010 | Q63: 13 | R63: 82859 | S63: 82859 | T63: 0 | U63: 4124891 | V63: 4124891 | W63: 0 | X63: 2181981 | Y63: 2181981 | Z63: 0 | AA63: 253786 | AB63: 253786 | AC63: 0 | AD63: 1384 | AE63: 3296.5 | AF63: جمله المبيعات | AG63: 4562356 | AH63: 0 | AI63: 405000 | AJ63: 650000 | AK63: 3507000 | AL63: -356
A64: 2024-07-29 | B64: 2024 | C64: 7 | D64: بنجوس | E64: بنزين | F64: 5490141 | G64: 5490141 | H64: 0 | I64: 5898663 | J64: 5898663 | K64: 0 | L64: 68776 | M64: 68776 | N64: 0 | O64: 102010 | P64: 102010 | Q64: 0 | R64: 82859 | S64: 82859 | T64: 0 | U64: 4124891 | V64: 4126659 | W64: 1768 | X64: 2181981 | Y64: 2182179 | Z64: 198 | AA64: 253786 | AB64: 254706 | AC64: 920 | AD64: 2886 | AE64: 3304 | AF64: جمله المبيعات | AG64: 9535344 | AH64: 0 | AI64: 0 | AJ64: 0 | AK64: 9535500 | AL64: 156
A65: 2024-07-29 | B65: 2024 | C65: 7 | D65: كبشور | E65: جاز | F65: 5490141 | G65: 5490398 | H65: 257 | I65: 5898663 | J65: 5899464 | K65: 801 | L65: 68776 | M65: 68776 | N65: 0 | O65: 102010 | P65: 102010 | Q65: 0 | R65: 82859 | S65: 82859 | T65: 0 | U65: 4126659 | V65: 4126659 | W65: 0 | X65: 2182179 | Y65: 2182179 | Z65: 0 | AA65: 254706 | AB65: 254706 | AC65: 0 | AD65: 1058 | AE65: 3296.5 | AF65: جمله المبيعات | AG65: 3487697 | AH65: 0 | AI65: 170000 | AJ65: 500000 | AK65: 2818000 | AL65: 303
A66: 2024-07-30 | B66: 2024 | C66: 7 | D66: بنجوس | E66: جاز | F66: 5490398 | G66: 5491185 | H66: 787 | I66: 5899464 | J66: 5900438 | K66: 974 | L66: 68776 | M66: 68832 | N66: 56 | O66: 102010 | P66: 102059 | Q66: 49 | R66: 82859 | S66: 82859 | T66: 0 | U66: 4126659 | V66: 4126659 | W66: 0 | X66: 2182179 | Y66: 2182179 | Z66: 0 | AA66: 254706 | AB66: 254706 | AC66: 0 | AD66: 1866 | AE66: 3296.5 | AF66: جمله المبيعات | AG66: 6151269 | AH66: 0 | AI66: 58000 | AJ66: 0 | AK66: 6093500 | AL66: 231
A67: 2024-07-30 | B67: 2024 | C67: 7 | D67: كبشور | E67: بنزين | F67: 5491185 | G67: 5491185 | H67: 0 | I67: 5900438 | J67: 5900438 | K67: 0 | L67: 68832 | M67: 68832 | N67: 0 | O67: 102059 | P67: 102059 | Q67: 0 | R67: 82859 | S67: 82859 | T67: 0 | U67: 4126659 | V67: 4128360 | W67: 1701 | X67: 2182179 | Y67: 2182342 | Z67: 163 | AA67: 254706 | AB67: 255250 | AC67: 544 | AD67: 2408 | AE67: 3304 | AF67: جمله المبيعات | AG67: 7956032 | AH67: 0 | AI67: 0 | AJ67: 400000 | AK67: 7556000 | AL67: -32
A68: 2024-07-31 | B68: 2024 | C68: 7 | D68: ودشرف | E68: بنزين | F68: 5491185 | G68: 5491185 | H68: 0 | I68: 5900438 | J68: 5900438 | K68: 0 | L68: 68832 | M68: 68832 | N68: 0 | O68: 102059 | P68: 102059 | Q68: 0 | R68: 82859 | S68: 82859 | T68: 0 | U68: 4128360 | V68: 4129925 | W68: 1565 | X68: 2182342 | Y68: 2182544 | Z68: 202 | AA68: 255250 | AB68: 255990 | AC68: 740 | AD68: 2507 | AE68: 3304 | AF68: جمله المبيعات | AG68: 8283128 | AH68: 0 | AI68: 1557000 | AJ68: 183000 | AK68: 6543000 | AL68: -128
A69: 2024-07-31 | B69: 2024 | C69: 7 | D69: محمدابدول | E69: جاز | F69: 5491185 | G69: 5491678 | H69: 493 | I69: 5900438 | J69: 5901444 | K69: 1006 | L69: 68832 | M69: 68844 | N69: 12 | O69: 102059 | P69: 102059 | Q69: 0 | R69: 82859 | S69: 83059 | T69: 200 | U69: 4129925 | V69: 4129925 | W69: 0 | X69: 2182544 | Y69: 2182544 | Z69: 0 | AA69: 255990 | AB69: 255990 | AC69: 0 | AD69: 1711 | AE69: 3296.5 | AF69: جمله المبيعات | AG69: 5640311 | AH69: 1766500 | AI69: 1120000 | AJ69: 100000 | AK69: 2653811 | AL69: 0
A70: 2024-08-01 | B70: 2024 | C70: 8 | D70: ودشرف | E70: جاز | F70: 5491678 | G70: 5493286 | H70: 1608 | I70: 5901444 | J70: 5902366 | K70: 922 | L70: 68844 | M70: 68844 | N70: 0 | O70: 102059 | P70: 102059 | Q70: 0 | R70: 83059 | S70: 83059 | T70: 0 | U70: 4129925 | V70: 4129925 | W70: 0 | X70: 2182544 | Y70: 2182544 | Z70: 0 | AA70: 255990 | AB70: 255990 | AC70: 0 | AD70: 2530 | AE70: 3296.5 | AF70: جمله المبيعات | AG70: 8340145 | AH70: 0 | AI70: 85000 | AJ70: 80000 | AK70: 8175000 | AL70: -145
A71: 2024-08-01 | B71: 2024 | C71: 8 | D71: محمدابدول | E71: بنزين | F71: 5493286 | G71: 5493286 | H71: 0 | I71: 5902366 | J71: 5902366 | K71: 0 | L71: 68844 | M71: 68844 | N71: 0 | O71: 102059 | P71: 102059 | Q71: 0 | R71: 83059 | S71: 83059 | T71: 0 | U71: 4129925 | V71: 4131997 | W71: 2072 | X71: 2182544 | Y71: 2182717 | Z71: 173 | AA71: 255990 | AB71: 257430 | AC71: 1440 | AD71: 3685 | AE71: 3304 | AF71: جمله المبيعات | AG71: 12175240 | AH71: 68600 | AI71: 1970000 | AJ71: 600000 | AK71: 9536640 | AL71: =IFERROR((AH71+AI71+AJ71+AK71)-AG71,"") -> 0
A72: 2024-08-02 | B72: =IF(A72<>"",YEAR(A72),"") -> 2024 | C72: =IF(A72<>"",MONTH(A72),"") -> 8 | D72: بنجوس | E72: بنزين | F72: 5493286 | G72: 5493286 | H72: 0 | I72: =IF($A72<>"",IF($E72<>"توريده",J71,0),"") -> 5902366 | J72: 5902366 | K72: 0 | L72: =IF($A72<>"",IF($E72<>"توريده",M71,0),"") -> 68844 | M72: 68844 | N72: 0 | O72: =IF($A72<>"",IF($E72<>"توريده",P71,0),"") -> 102059 | P72: 102059 | Q72: 0 | R72: =IF($A72<>"",IF($E72<>"توريده",S71,0),"") -> 83059 | S72: 83059 | T72: 0 | U72: 4131997 | V72: 4133523 | W72: 1526 | X72: =IF($A72<>"",IF($E72<>"توريده",Y71,0),"") -> 2182717 | Y72: 2182914 | Z72: 197 | AA72: =IF($A72<>"",IF($E72<>"توريده",AB71,0),"") -> 257430 | AB72: 258580 | AC72: 1150 | AD72: 2873 | AE72: 3304 | AF72: جمله المبيعات | AG72: =IFERROR(ROUNDDOWN(IF(A72<>"",IF(E72="توريده","",AD72*AE72),""),0),"") -> 9492392 | AH72: 1300000 | AI72: 0 | AJ72: 30000 | AK72: 8162500 | AL72: 108
A73: 2024-08-02 | B73: 2024 | C73: 8 | D73: كبشور | E73: جاز | F73: 5493286 | G73: 5494039 | H73: =IFERROR(G73-F73,"") -> 753 | I73: 5902366 | J73: 5903160 | K73: =IFERROR(J73-I73,"") -> 794 | L73: 68844 | M73: 68844 | N73: =IFERROR(M73-L73,"") -> 0 | O73: 102059 | P73: 102059 | Q73: =IFERROR(P73-O73,"") -> 0 | R73: 83059 | S73: 83059 | T73: =IFERROR(S73-R73,"") -> 0 | U73: =IF($A73<>"",IF($E73<>"توريده",V72,0),"") -> 4133523 | V73: =IF($A73<>"",IF($E73<>"بنزين",U73,""),"") -> 4133523 | W73: =IFERROR(V73-U73,"") -> 0 | X73: 2182914 | Y73: =IF($A73<>"",IF($E73<>"بنزين",X73,""),"") -> 2182914 | Z73: =IFERROR(Y73-X73,"") -> 0 | AA73: 258580 | AB73: =IF($A73<>"",IF($E73<>"بنزين",AA73,""),"") -> 258580 | AC73: =IFERROR(AB73-AA73,"") -> 0 | AD73: =IFERROR(IF(E73="توريده","",IF(E73="بنزين",W73+Z73+AC73,T73+Q73+N73+K73+H73)),"") -> 1547 | AE73: 3296.5 | AF73: جمله المبيعات | AG73: 5099685 | AH73: 885000 | AI73: 0 | AJ73: 0 | AK73: 4215000 | AL73: 315
A74: 2024-08-03 | B74: 2024 | C74: 8 | D74: كبشور | E74: بنزين | F74: =IF($A74<>"",IF($E74<>"توريده",G73,0),"") -> 5494039 | G74: =IF($E74<>"جاز",F74,"") -> 5494039 | H74: 0 | I74: 5903160 | J74: =IF($E74<>"جاز",I74,"") -> 5903160 | K74: 0 | L74: 68844 | M74: =IF($E74<>"جاز",L74,"") -> 68844 | N74: 0 | O74: 102059 | P74: =IF($E74<>"جاز",O74,"") -> 102059 | Q74: 0 | R74: 83059 | S74: =IF($E74<>"جاز",R74,"") -> 83059 | T74: 0 | U74: 4133523 | V74: 4135674 | W74: 2151 | X74: 2182914 | Y74: 2183163 | Z74: 249 | AA74: 258580 | AB74: 259373 | AC74: 793 | AD74: 3193 | AE74: 3304 | AF74: جمله المبيعات | AG74: 10549672 | AH74: 0 | AI74: 6178200 | AJ74: 250000 | AK74: 4122000 | AL74: 528
A75: 2024-08-03 | B75: 2024 | C75: 8 | D75: بنجوس | E75: جاز | F75: 5494039 | G75: 5494813 | H75: 774 | I75: 5903160 | J75: 5904256 | K75: 1096 | L75: 68844 | M75: 68844 | N75: 0 | O75: 102059 | P75: 102059 | Q75: 0 | R75: 83059 | S75: 83059 | T75: 0 | U75: 4135674 | V75: 4135674 | W75: 0 | X75: 2183163 | Y75: 2183163 | Z75: 0 | AA75: 259373 | AB75: 259373 | AC75: 0 | AD75: 1870 | AE75: 3296.5 | AF75: جمله المبيعات | AG75: 6164455 | AH75: 0 | AI75: 1444300 | AK75: 4720500 | AL75: 345
A76: 2024-08-04 | B76: 2024 | C76: 8 | D76: محمدابدول | E76: جاز | F76: 5494813 | G76: 5495332 | H76: 519 | I76: 5904256 | J76: 5905838 | K76: 1582 | L76: 68844 | M76: 68856 | N76: 12 | O76: 102059 | P76: 102059 | Q76: 0 | R76: 83059 | S76: 83059 | T76: 0 | U76: 4135674 | V76: 4135674 | W76: 0 | X76: 2183163 | Y76: 2183163 | Z76: 0 | AA76: 259373 | AB76: 259373 | AC76: 0 | AD76: 2113 | AE76: 3296.5 | AF76: جمله المبيعات | AG76: 6965504 | AH76: 81500 | AI76: 60000 | AJ76: 150000 | AK76: 6674000 | AL76: -4
A77: 2024-08-04 | B77: 2024 | C77: 8 | D77: ودشرف | E77: بنزين | F77: 5495332 | G77: 5495332 | H77: 0 | I77: 5905838 | J77: 5905838 | K77: 0 | L77: 68856 | M77: 68856 | N77: 0 | O77: 102059 | P77: 102059 | Q77: 0 | R77: 83059 | S77: 83059 | T77: 0 | U77: 4135674 | V77: 4137404 | W77: 1730 | X77: 2183163 | Y77: 2183308 | Z77: 145 | AA77: 259373 | AB77: 259956 | AC77: 583 | AD77: 2458 | AE77: 3304 | AF77: جمله المبيعات | AG77: 8121232 | AH77: 0 | AI77: 174000 | AJ77: 550000 | AK77: 7396000 | AL77: -1232
A78: 2024-08-05 | B78: 2024 | C78: 8 | D78: ودشرف | E78: جاز | F78: 5495332 | G78: 5496433 | H78: 1101 | I78: 5905838 | J78: 5906550 | K78: 712 | L78: 68856 | M78: 68861 | N78: 5 | O78: 102059 | P78: 102095 | Q78: 36 | R78: 83059 | S78: 83180 | T78: 121 | U78: 4137404 | V78: 4137404 | W78: 0 | X78: 2183308 | Y78: 2183308 | Z78: 0 | AA78: 259956 | AB78: 259956 | AC78: 0 | AD78: 1975 | AE78: 3296.5 | AF78: جمله المبيعات | AG78: 6510587 | AH78: 0 | AI78: 0 | AJ78: 780000 | AK78: 5730000 | AL78: -587
A79: 2024-08-05 | B79: 2024 | C79: 8 | D79: محمدابدول | E79: بنزين | F79: 5496433 | G79: 5496433 | H79: 0 | I79: 5906550 | J79: 5906550 | K79: 0 | L79: 68861 | M79: 68861 | N79: 0 | O79: 102095 | P79: 102095 | Q79: 0 | R79: 83180 | S79: 83180 | T79: 0 | U79: 4137404 | V79: 4138863 | W79: 1459 | X79: 2183308 | Y79: 2183397 | Z79: 89 | AA79: 259956 | AB79: 260925 | AC79: 969 | AD79: 2517 | AE79: 3304 | AF79: جمله المبيعات | AG79: 8316168 | AH79: 216000 | AI79: 1716500 | AJ79: 330000 | AK79: 6054168 | AL79: 500
A80: 2024-08-06 | B80: 2024 | C80: 8 | D80: كبشور | E80: جاز | F80: 5496433 | G80: 5496972 | H80: 539 | I80: 5906550 | J80: 5907110 | K80: 560 | L80: 68861 | M80: 68887 | N80: 26 | O80: 102095 | P80: 102105 | Q80: 10 | R80: 83180 | S80: 83586 | T80: 406 | U80: 4138863 | V80: 4138863 | W80: 0 | X80: 2183397 | Y80: 2183397 | Z80: 0 | AA80: 260925 | AB80: 260925 | AC80: 0 | AD80: 1541 | AE80: 3296.5 | AF80: جمله المبيعات | AG80: 5079906 | AH80: 290000 | AI80: 1710000 | AJ80: 250000 | AK80: 2830000 | AL80: 94
A81: 2024-08-06 | B81: 2024 | C81: 8 | D81: بنجوس | E81: بنزين | F81: 5496972 | G81: 5496972 | H81: 0 | I81: 5907110 | J81: 5907110 | K81: 0 | L81: 68887 | M81: 68887 | N81: 0 | O81: 102105 | P81: 102105 | Q81: 0 | R81: 83586 | S81: 83586 | T81: 0 | U81: 4138863 | V81: 4139769 | W81: 906 | X81: 2183397 | Y81: 2183524 | Z81: 127 | AA81: 260925 | AB81: 261901 | AC81: 976 | AD81: 2009 | AE81: 3304 | AF81: جمله المبيعات | AG81: 6637736 | AH81: 750000 | AI81: 58000 | AJ81: 350000 | AK81: 5480000 | AL81: 264
A82: 2024-08-07 | B82: 2024 | C82: 8 | D82: بنجوس | E82: جاز | F82: 5496972 | G82: 5497513 | H82: 541 | I82: 5907110 | J82: 5908158 | K82: 1048 | L82: 68887 | M82: 68891 | N82: 4 | O82: 102105 | P82: 102134 | Q82: 29 | R82: 83586 | S82: 83586 | T82: 0 | U82: 4139769 | V82: 4139769 | W82: 0 | X82: 2183524 | Y82: 2183524 | Z82: 0 | AA82: 261901 | AB82: 261901 | AC82: 0 | AD82: 1622 | AE82: 3296.5 | AF82: جمله المبيعات | AG82: 5346923 | AH82: 0 | AI82: 3000 | AJ82: 0 | AK82: 5344000 | AL82: 77
A83: 2024-08-07 | B83: 2024 | C83: 8 | D83: كبشور | E83: بنزين | F83: 5497513 | G83: 5497513 | H83: 0 | I83: 5908158 | J83: 5908158 | K83: 0 | L83: 68891 | M83: 68891 | N83: 0 | O83: 102134 | P83: 102134 | Q83: 0 | R83: 83586 | S83: 83586 | T83: 0 | U83: 4139769 | V83: 4141159 | W83: 1390 | X83: 2183524 | Y83: 2183720 | Z83: 196 | AA83: 261901 | AB83: 262594 | AC83: 693 | AD83: 2279 | AE83: 3304 | AF83: جمله المبيعات | AG83: 7529816 | AH83: 0 | AI83: 0 | AJ83: 460000 | AK83: 7070000 | AL83: 184
A84: 2024-08-08 | B84: 2024 | C84: 8 | D84: ودشرف | E84: بنزين | F84: 5497513 | G84: 5497513 | H84: 0 | I84: 5908158 | J84: 5908158 | K84: 0 | L84: 68891 | M84: 68891 | N84: 0 | O84: 102134 | P84: 102134 | Q84: 0 | R84: 83586 | S84: 83586 | T84: 0 | U84: 4141159 | V84: 4143127 | W84: 1968 | X84: 2183720 | Y84: 2183945 | Z84: 225 | AA84: 262594 | AB84: 263620 | AC84: 1026 | AD84: 3219 | AE84: 3304 | AF84: جمله المبيعات | AG84: 10635576 | AH84: 0 | AI84: 1026000 | AJ84: 330000 | AK84: 9279000 | AL84: -576
A85: 2024-08-08 | B85: 2024 | C85: 8 | D85: محمدابدول | E85: جاز | F85: 5497513 | G85: 5498198 | H85: 685 | I85: 5908158 | J85: 5909322 | K85: 1164 | L85: 68891 | M85: 68891 | N85: 0 | O85: 102134 | P85: 102134 | Q85: 0 | R85: 83586 | S85: 83586 | T85: 0 | U85: 4143127 | V85: 4143127 | W85: 0 | X85: 2183945 | Y85: 2183945 | Z85: 0 | AA85: 263620 | AB85: 263620 | AC85: 0 | AD85: 1849 | AE85: 3296.5 | AF85: جمله المبيعات | AG85: 6095228 | AH85: 479000 | AI85: 0 | AJ85: 145000 | AK85: 5471228 | AL85: 0
A86: 2024-08-09 | B86: 2024 | C86: 8 | D86: ودشرف | E86: جاز | F86: 5498198 | G86: 5498632 | H86: 434 | I86: 5909322 | J86: 5909637 | K86: 315 | L86: 68891 | M86: 68930 | N86: 39 | O86: 102134 | P86: 102134 | Q86: 0 | R86: 83586 | S86: 83586 | T86: 0 | U86: 4143127 | V86: 4143127 | W86: 0 | X86: 2183945 | Y86: 2183945 | Z86: 0 | AA86: 263620 | AB86: 263620 | AC86: 0 | AD86: 788 | AE86: 3296.5 | AF86: جمله المبيعات | AG86: 2597642 | AH86: 0 | AI86: 50000 | AJ86: 0 | AK86: 2547000 | AL86: -642
A87: 2024-08-09 | B87: 2024 | C87: 8 | D87: محمدابدول | E87: بنزين | F87: 5498632 | G87: 5498632 | H87: 0 | I87: 5909637 | J87: 5909637 | K87: 0 | L87: 68930 | M87: 68930 | N87: 0 | O87: 102134 | P87: 102134 | Q87: 0 | R87: 83586 | S87: 83586 | T87: 0 | U87: 4143127 | V87: 4144330 | W87: 1203 | X87: 2183945 | Y87: 2183969 | Z87: 24 | AA87: 263620 | AB87: 264190 | AC87: 570 | AD87: 1797 | AE87: 3304 | AF87: جمله المبيعات | AG87: 5937288 | AH87: 12200 | AI87: 440000 | AJ87: 0 | AK87: 5485000 | AL87: -88
A88: 2024-08-10 | B88: 2024 | C88: 8 | D88: كبشور | E88: جاز | F88: 5498632 | G88: 5499296 | H88: 664 | I88: 5909631 | J88: 5910364 | K88: 733 | L88: 68930 | M88: 69071 | N88: 141 | O88: 102134 | P88: 102134 | Q88: 0 | R88: 83586 | S88: 83586 | T88: 0 | U88: 4144330 | V88: 4144330 | W88: 0 | X88: 2183969 | Y88: 2183969 | Z88: 0 | AA88: 264190 | AB88: 264190 | AC88: 0 | AD88: 1538 | AE88: 3296.5 | AF88: جمله المبيعات | AG88: 5070017 | AH88: 0 | AI88: 60000 | AJ88: 1250000 | AK88: 3760000 | AL88: -17
A89: 2024-08-10 | B89: 2024 | C89: 8 | D89: بنجوس | E89: بنزين | F89: 5499296 | G89: 5499296 | H89: 0 | I89: =IF($A89<>"",IF($E89<>"توريده",J88,0),"") -> 5910364 | J89: 5910364 | K89: 0 | L89: 69071 | M89: 69071 | N89: 0 | O89: 102134 | P89: 102134 | Q89: 0 | R89: 83586 | S89: 83586 | T89: 0 | U89: 4144330 | V89: 4145847 | W89: 1517 | X89: 2183969 | Y89: 2184101 | Z89: 132 | AA89: 264190 | AB89: 264876 | AC89: 686 | AD89: 2335 | AE89: 3304 | AF89: جمله المبيعات | AG89: 7714840 | AH89: 0 | AI89: 53000 | AJ89: 875000 | AK89: 6787000 | AL89: 160
A90: 2024-08-11 | B90: 2024 | C90: 8 | D90: بنجوس | E90: جاز | F90: 5499296 | G90: 5500014 | H90: 718 | I90: 5910364 | J90: 5911029 | K90: 665 | L90: 69071 | M90: 69151 | N90: 80 | O90: 102134 | P90: 102275 | Q90: 141 | R90: 83586 | S90: 83848 | T90: 262 | U90: 4145847 | V90: 4145847 | W90: 0 | X90: 2184101 | Y90: 2184101 | Z90: 0 | AA90: 264876 | AB90: 264876 | AC90: 0 | AD90: 1866 | AE90: 3296.5 | AF90: جمله المبيعات | AG90: 6151269 | AH90: 0 | AI90: 521510 | AJ90: 0 | AK90: 5630000 | AL90: 241
A91: 2024-08-11 | B91: 2024 | C91: 8 | D91: كبشور | E91: بنزين | F91: 5500014 | G91: 5500014 | H91: 0 | I91: 5911029 | J91: 5911029 | K91: 0 | L91: 69151 | M91: 69151 | N91: 0 | O91: 102275 | P91: 102275 | Q91: 0 | R91: 83848 | S91: 83848 | T91: 0 | U91: 4145847 | V91: 4147104 | W91: 1257 | X91: 2184101 | Y91: 2184267 | Z91: 166 | AA91: 264876 | AB91: 265435 | AC91: 559 | AD91: 1982 | AE91: 3304 | AF91: جمله المبيعات | AG91: 6548528 | AH91: 642500 | AI91: 4418300 | AJ91: 250000 | AK91: 1238000 | AL91: 272
A92: 2024-08-11 | B92: 2024 | C92: 8 | D92: كبشور | E92: بنزين | F92: 5500014 | G92: 5500014 | H92: 0 | I92: 5911029 | J92: 5911029 | K92: 0 | L92: 69151 | M92: 69151 | N92: 0 | O92: 102275 | P92: 102275 | Q92: 0 | R92: 83848 | S92: 83848 | T92: 0 | U92: 4147104 | V92: 4147487 | W92: 383 | X92: 2184267 | Y92: 2184487 | Z92: 220 | AA92: 265435 | AB92: 265435 | AC92: 0 | AD92: 603 | AE92: 3284 | AF92: جمله المبيعات | AG92: 1980252 | AH92: 0 | AI92: 190000 | AJ92: 0 | AK92: 1790000 | AL92: -252
A93: 2024-08-12 | B93: 2024 | C93: 8 | D93: ودشرف | E93: بنزين | F93: 5500014 | G93: 5500014 | H93: 0 | I93: 5911029 | J93: 5911029 | K93: 0 | L93: 69151 | M93: 69151 | N93: 0 | O93: 102275 | P93: 102275 | Q93: 0 | R93: 83848 | S93: 83848 | T93: 0 | U93: 4147487 | V93: 4149021 | W93: 1534 | X93: 2184487 | Y93: 2184688 | Z93: 201 | AA93: 265435 | AB93: 266383 | AC93: 948 | AD93: 2683 | AE93: 3284 | AF93: جمله المبيعات | AG93: 8810972 | AH93: 544400 | AI93: 33000 | AJ93: 430000 | AK93: 7803000 | AL93: -572
A94: 2024-08-12 | B94: 2024 | C94: 8 | D94: محمدابدول | E94: جاز | F94: 5500014 | G94: 5500622 | H94: 608 | I94: 5911029 | J94: 5911987 | K94: 958 | L94: 69151 | M94: 69151 | N94: 0 | O94: 102275 | P94: 102275 | Q94: 0 | R94: 83848 | S94: 83848 | T94: 0 | U94: 4149021 | V94: 4149021 | W94: 0 | X94: 2184688 | Y94: 2184688 | Z94: 0 | AA94: 266383 | AB94: 266383 | AC94: 0 | AD94: 1566 | AE94: 3296.5 | AF94: جمله المبيعات | AG94: 5162319 | AH94: 920000 | AI94: 0 | AJ94: 0 | AK94: 4242319 | AL94: 0
A95: 2024-08-13 | B95: 2024 | C95: 8 | D95: ودشرف | E95: جاز | F95: 5500622 | G95: 5502052 | H95: 1430 | I95: 5911987 | J95: 5912802 | K95: 815 | L95: 69151 | M95: 69151 | N95: 0 | O95: 102275 | P95: 102275 | Q95: 0 | R95: 83848 | S95: 83848 | T95: 0 | U95: 4149021 | V95: 4149021 | W95: 0 | X95: 2184688 | Y95: 2184688 | Z95: 0 | AA95: 266383 | AB95: 266383 | AC95: 0 | AD95: 2245 | AE95: 3296.58 | AF95: جمله المبيعات | AG95: 7400822 | AH95: 1390600 | AI95: 64500 | AJ95: 0 | AK95: 5945000 | AL95: -722
A96: 2024-08-13 | B96: 2024 | C96: 8 | D96: محمدابدول | E96: بنزين | F96: 5502052 | G96: 5502052 | H96: 0 | I96: 5912802 | J96: 5912802 | K96: 0 | L96: 69151 | M96: 69151 | N96: 0 | O96: 102275 | P96: 102275 | Q96: 0 | R96: 83848 | S96: 83848 | T96: 0 | U96: 4149021 | V96: 4150939 | W96: 1918 | X96: 2184688 | Y96: 2184796 | Z96: 108 | AA96: 266383 | AB96: 267645 | AC96: 1262 | AD96: 3288 | AE96: 3284 | AF96: جمله المبيعات | AG96: 10797792 | AH96: 4667400 | AI96: 100000 | AJ96: 710000 | AK96: 5320392 | AL96: 0
A97: 2024-08-14 | B97: 2024 | C97: 8 | D97: بنجوس | E97: بنزين | F97: 5502052 | G97: 5502052 | H97: 0 | I97: 5912802 | J97: 5912802 | K97: 0 | L97: 69151 | M97: 69151 | N97: 0 | O97: 102275 | P97: 102275 | Q97: 0 | R97: 83848 | S97: 83848 | T97: 0 | U97: 4150939 | V97: 4152680 | W97: 1741 | X97: 2184796 | Y97: 2185067 | Z97: 271 | AA97: 267645 | AB97: 268292 | AC97: 647 | AD97: 2659 | AE97: 3284 | AF97: جمله المبيعات | AG97: 8732156 | AH97: 0 | AI97: 173000 | AJ97: 65000 | AK97: 8494500 | AL97: 344
A98: 2024-08-14 | B98: 2024 | C98: 8 | D98: كبشور | E98: جاز | F98: 5502052 | G98: 5502675 | H98: 623 | I98: 5912802 | J98: 5913426 | K98: 624 | L98: 69151 | M98: 69218 | N98: 67 | O98: 102275 | P98: 102275 | Q98: 0 | R98: 83848 | S98: 83848 | T98: 0 | U98: 4152680 | V98: 4152680 | W98: 0 | X98: 2185067 | Y98: 2185067 | Z98: 0 | AA98: 268292 | AB98: 268292 | AC98: 0 | AD98: 1314 | AE98: 3296.5 | AF98: جمله المبيعات | AG98: 4331601 | AH98: 500000 | AI98: 0 | AJ98: 495000 | AK98: 3336500 | AL98: -101
A99: 2024-08-15 | B99: 2024 | C99: 8 | D99: بنجوس | E99: جاز | F99: 5502675 | G99: 5503461 | H99: 786 | I99: 5913426 | J99: 5914842 | K99: 1416 | L99: 69218 | M99: 69218 | N99: 0 | O99: 102275 | P99: 102275 | Q99: 0 | R99: 83848 | S99: 83848 | T99: 0 | U99: 4152680 | V99: 4152680 | W99: 0 | X99: 2185067 | Y99: 2185067 | Z99: 0 | AA99: 268292 | AB99: 268292 | AC99: 0 | AD99: 2202 | AE99: 3296.5 | AF99: جمله المبيعات | AG99: 7258893 | AH99: 0 | AI99: 10000 | AJ99: 300000 | AK99: 6949000 | AL99: 107
A100: 2024-08-15 | B100: 2024 | C100: 8 | D100: كبشور | E100: بنزين | F100: 5503461 | G100: 5503461 | H100: 0 | I100: 5914842 | J100: 5914842 | K100: 0 | L100: 69218 | M100: 69218 | N100: 0 | O100: 102275 | P100: 102275 | Q100: 0 | R100: 83848 | S100: 83848 | T100: 0 | U100: 4152680 | V100: 4155219 | W100: 2539 | X100: 2185067 | Y100: 2185538 | Z100: 471 | AA100: 268292 | AB100: 268451 | AC100: 159 | AD100: 3169 | AE100: 3284 | AF100: جمله المبيعات | AG100: 10406996 | AH100: 0 | AI100: 139000 | AJ100: 250000 | AK100: 10018000 | AL100: 4
A101: 2024-08-16 | B101: 2024 | C101: 8 | D101: محمدابدول | E101: جاز | F101: 5503461 | G101: 5503632 | H101: 171 | I101: 5914842 | J101: 5915567 | K101: 725 | L101: 69218 | M101: 69218 | N101: 0 | O101: 102275 | P101: 102275 | Q101: 0 | R101: 83848 | S101: 83848 | T101: 0 | U101: 4155219 | V101: 4155219 | W101: 0 | X101: 2185538 | Y101: 2185538 | Z101: 0 | AA101: 268451 | AB101: 268451 | AC101: 0 | AD101: 896 | AE101: 3296.5 | AF101: جمله المبيعات | AG101: 2953664 | AH101: 577300 | AI101: 110000 | AJ101: 120000 | AK101: 2146364 | AL101: 0
A102: 2024-08-16 | B102: 2024 | C102: 8 | D102: ودشرف | E102: بنزين | F102: 5503632 | G102: 5503632 | H102: 0 | I102: 5915567 | J102: 5915567 | K102: 0 | L102: 69218 | M102: 69218 | N102: 0 | O102: 102275 | P102: 102275 | Q102: 0 | R102: 83848 | S102: 83848 | T102: 0 | U102: 4155219 | V102: 4157153 | W102: 1934 | X102: 2185538 | Y102: 2185611 | Z102: 73 | AA102: 268451 | AB102: 269199 | AC102: 748 | AD102: 2755 | AE102: 3284 | AF102: جمله المبيعات | AG102: 9047420 | AH102: 711000 | AI102: 362000 | AJ102: 1009000 | AK102: 6965000 | AL102: -420
A103: 2024-08-17 | B103: 2024 | C103: 8 | D103: ودشرف | E103: جاز | F103: 5503632 | G103: 5504863 | H103: 1231 | I103: 5915567 | J103: 5916756 | K103: 1189 | L103: 69218 | M103: 69218 | N103: 0 | O103: 102275 | P103: 102275 | Q103: 0 | R103: 83848 | S103: 84085 | T103: 237 | U103: 4157153 | V103: 4157153 | W103: 0 | X103: 2185611 | Y103: 2185611 | Z103: 0 | AA103: 269199 | AB103: 269199 | AC103: 0 | AD103: 2657 | AE103: 3296.5 | AF103: جمله المبيعات | AG103: 8758800 | AH103: 0 | AI103: 0 | AJ103: 50000 | AK103: 8708000 | AL103: -800
A104: 2024-08-17 | B104: 2024 | C104: 8 | D104: محمدابدول | E104: بنزين | F104: 5504863 | G104: 5504863 | H104: 0 | I104: 5916756 | J104: 5916756 | K104: 0 | L104: 69218 | M104: 69218 | N104: 0 | O104: 102275 | P104: 102275 | Q104: 0 | R104: 84085 | S104: 84085 | T104: 0 | U104: 4157153 | V104: 4158992 | W104: 1839 | X104: 2185611 | Y104: 2185798 | Z104: 187 | AA104: 269199 | AB104: 270075 | AC104: 876 | AD104: 2902 | AE104: 3284 | AF104: جمله المبيعات | AG104: 9530168 | AH104: 0 | AI104: 2533000 | AJ104: 295000 | AK104: 6702168 | AL104: 0
A105: 2024-08-18 | B105: 2024 | C105: 8 | D105: كبشور | E105: جاز | F105: 5504863 | G105: 5505635 | H105: 772 | I105: 5916756 | J105: 5917761 | K105: 1005 | L105: 69218 | M105: 69218 | N105: 0 | O105: 102275 | P105: 102275 | Q105: 0 | R105: 84085 | S105: 84085 | T105: 0 | U105: 4158992 | V105: 4158992 | W105: 0 | X105: 2185798 | Y105: 2185798 | Z105: 0 | AA105: 270075 | AB105: 270075 | AC105: 0 | AD105: 1777 | AE105: 3296.5 | AF105: جمله المبيعات | AG105: 5857880 | AH105: 0 | AI105: 225000 | AJ105: 310000 | AK105: 5323000 | AL105: 120
A106: 2024-08-18 | B106: 2024 | C106: 8 | D106: بنجوس | E106: بنزين | F106: 5505635 | G106: 5505635 | H106: 0 | I106: 5917761 | J106: 5917761 | K106: 0 | L106: 69218 | M106: 69218 | N106: 0 | O106: 102275 | P106: 102275 | Q106: 0 | R106: 84085 | S106: 84085 | T106: 0 | U106: 4158992 | V106: 4161404 | W106: 2412 | X106: 2185798 | Y106: 2186055 | Z106: 257 | AA106: 270075 | AB106: 270382 | AC106: 307 | AD106: 2976 | AE106: 3284 | AF106: جمله المبيعات | AG106: 9773184 | AH106: 0 | AI106: 15000 | AJ106: 455000 | AK106: 9303500 | AL106: 316
A107: 2024-08-19 | B107: 2024 | C107: 8 | D107: كبشور | E107: بنزين | F107: 5505635 | G107: 5505635 | H107: 0 | I107: 5917761 | J107: 5917761 | K107: 0 | L107: 69218 | M107: 69218 | N107: 0 | O107: 102275 | P107: 102275 | Q107: 0 | R107: 84085 | S107: 84085 | T107: 0 | U107: 4161404 | V107: 4163671 | W107: 2267 | X107: 2186055 | Y107: 2186606 | Z107: 551 | AA107: 270382 | AB107: 270382 | AC107: 0 | AD107: 2818 | AE107: 3284 | AF107: جمله المبيعات | AG107: 9254312 | AH107: 42000 | AI107: 1600000 | AJ107: 360000 | AK107: 7252000 | AL107: -312
A108: 2024-08-19 | B108: 2024 | C108: 8 | D108: بنجوس | E108: جاز | F108: 5505635 | G108: 5506286 | H108: 651 | I108: 5917761 | J108: 5919002 | K108: 1241 | L108: 69218 | M108: 69218 | N108: 0 | O108: 102275 | P108: 102275 | Q108: 0 | R108: 84085 | S108: 84085 | T108: 0 | U108: 4163671 | V108: 4163671 | W108: 0 | X108: 2186606 | Y108: 2186606 | Z108: 0 | AA108: 270382 | AB108: 270382 | AC108: 0 | AD108: 1892 | AE108: 3296.5 | AF108: جمله المبيعات | AG108: 6236978 | AH108: 0 | AI108: 1600000 | AJ108: 470000 | AK108: 4167000 | AL108: 22
A109: 2024-08-20 | B109: 2024 | C109: 8 | D109: ودشرف | E109: بنزين | F109: 5506286 | G109: 5506286 | H109: 0 | I109: 5919002 | J109: 5919002 | K109: 0 | L109: 69218 | M109: 69218 | N109: 0 | O109: 102275 | P109: 102275 | Q109: 0 | R109: 84085 | S109: 84085 | T109: 0 | U109: 4163671 | V109: 4165731 | W109: 2060 | X109: 2186606 | Y109: 2186878 | Z109: 272 | AA109: 270382 | AB109: 271102 | AC109: 720 | AD109: 3052 | AE109: 3284 | AF109: جمله المبيعات | AG109: 10022768 | AH109: 0 | AI109: 215000 | AJ109: 250000 | AK109: 9557000 | AL109: -768
A110: 2024-08-20 | B110: 2024 | C110: 8 | D110: محمدابدول | E110: جاز | F110: 5506286 | G110: 5507090 | H110: 804 | I110: 5919002 | J110: 5920651 | K110: 1649 | L110: 69218 | M110: 69218 | N110: 0 | O110: 102275 | P110: 102275 | Q110: 0 | R110: 84085 | S110: 84085 | T110: 0 | U110: 4165731 | V110: 4165731 | W110: 0 | X110: 2186878 | Y110: 2186878 | Z110: 0 | AA110: 271102 | AB110: 271102 | AC110: 0 | AD110: 2453 | AE110: 3296.5 | AF110: جمله المبيعات | AG110: 8086314 | AH110: 0 | AI110: 200000 | AJ110: 0 | AK110: 7886314 | AL110: 0
A111: 2024-08-21 | B111: 2024 | C111: 8 | D111: ودشرف | E111: جاز | F111: 5507090 | G111: 5509133 | H111: 2043 | I111: 5920651 | J111: 5921383 | K111: 732 | L111: 69218 | M111: 69218 | N111: 0 | O111: 102275 | P111: 102275 | Q111: 0 | R111: 84085 | S111: 84104 | T111: 19 | U111: 4165731 | V111: 4165731 | W111: 0 | X111: 2186878 | Y111: 2186878 | Z111: 0 | AA111: 271102 | AB111: 271102 | AC111: 0 | AD111: 2794 | AE111: 3296.5 | AF111: جمله المبيعات | AG111: 9210421 | AH111: 217000 | AI111: 177500 | AJ111: 350000 | AK111: 8465000 | AL111: -921
A112: 2024-08-21 | B112: 2024 | C112: 8 | D112: محمدابدول | E112: بنزين | F112: 5509133 | G112: 5509133 | H112: 0 | I112: 5921383 | J112: 5921383 | K112: 0 | L112: 69218 | M112: 69218 | N112: 0 | O112: 102275 | P112: 102275 | Q112: 0 | R112: 84104 | S112: 84104 | T112: 0 | U112: 4165731 | V112: 4167377 | W112: 1646 | X112: 2186878 | Y112: 2186981 | Z112: 103 | AA112: 271102 | AB112: 271818 | AC112: 716 | AD112: 2465 | AE112: 3284 | AF112: جمله المبيعات | AG112: 8095060 | AH112: 2119500 | AI112: 400000 | AJ112: 250000 | AK112: 5325560 | AL112: 0
A113: 2024-08-22 | B113: 2024 | C113: 8 | D113: كبشور | E113: جاز | F113: 5509133 | G113: 5510259 | H113: 1126 | I113: 5921383 | J113: 5922588 | K113: 1205 | L113: 69218 | M113: 69227 | N113: 9 | O113: 102275 | P113: 102275 | Q113: 0 | R113: 84104 | S113: 84104 | T113: 0 | U113: 4167377 | V113: 4167377 | W113: 0 | X113: 2186981 | Y113: 2186981 | Z113: 0 | AA113: 271818 | AB113: 271818 | AC113: 0 | AD113: 2340 | AE113: 3296.5 | AF113: جمله المبيعات | AG113: 7713810 | AH113: 0 | AI113: 0 | AJ113: 430000 | AK113: 7284000 | AL113: 190
A114: 2024-08-22 | B114: 2024 | C114: 8 | D114: بنجوس | E114: بنزين | F114: 5510259 | G114: 5510259 | H114: 0 | I114: 5922588 | J114: 5922588 | K114: 0 | L114: 69227 | M114: 69227 | N114: 0 | O114: 102275 | P114: 102275 | Q114: 0 | R114: 84104 | S114: 84104 | T114: 0 | U114: 4167377 | V114: 4169499 | W114: 2122 | X114: 2186981 | Y114: 2187356 | Z114: 375 | AA114: 271818 | AB114: 272726 | AC114: 908 | AD114: 3405 | AE114: 3284 | AF114: جمله المبيعات | AG114: 11182020 | AH114: 0 | AI114: 2520000 | AJ114: 350000 | AK114: 8312500 | AL114: 480
A115: 2024-08-23 | B115: 2024 | C115: 8 | D115: بنجوس | E115: جاز | F115: 5510259 | G115: 5510979 | H115: 720 | I115: 5922588 | J115: 5923530 | K115: 942 | L115: 69227 | M115: 69348 | N115: 121 | O115: 102275 | P115: 102275 | Q115: 0 | R115: 84104 | S115: 84104 | T115: 0 | U115: 4169499 | V115: 4169499 | W115: 0 | X115: 2187356 | Y115: 2187356 | Z115: 0 | AA115: 272726 | AB115: 272726 | AC115: 0 | AD115: 1783 | AE115: 3296.5 | AF115: جمله المبيعات | AG115: 5877659 | AH115: 0 | AI115: 120000 | AJ115: 0 | AK115: 5758000 | AL115: 341
A116: 2024-08-23 | B116: 2024 | C116: 8 | D116: كبشور | E116: بنزين | F116: 5510979 | G116: 5510979 | H116: 0 | I116: 5923530 | J116: 5923530 | K116: 0 | L116: 69348 | M116: 69348 | N116: 0 | O116: 102275 | P116: 102275 | Q116: 0 | R116: 84104 | S116: 84104 | T116: 0 | U116: 4169499 | V116: 4170982 | W116: 1483 | X116: 2187356 | Y116: 2187523 | Z116: 167 | AA116: 272726 | AB116: 273357 | AC116: 631 | AD116: 2281 | AE116: 3284 | AF116: جمله المبيعات | AG116: 7490804 | AH116: 0 | AI116: 302000 | AJ116: 2117000 | AK116: 5072000 | AL116: 196
A117: 2024-08-24 | B117: 2024 | C117: 8 | D117: ودشرف | E117: بنزين | F117: 5510979 | G117: 5510979 | H117: 0 | I117: 5923530 | J117: 5923530 | K117: 0 | L117: 69348 | M117: 69348 | N117: 0 | O117: 102275 | P117: 102275 | Q117: 0 | R117: 84104 | S117: 84104 | T117: 0 | U117: 4170982 | V117: 4172881 | W117: 1899 | X117: 2187523 | Y117: 2187833 | Z117: 310 | AA117: 273357 | AB117: 273975 | AC117: 618 | AD117: 2827 | AE117: 3284 | AF117: جمله المبيعات | AG117: 9283868 | AH117: 0 | AI117: 0 | AJ117: 499000 | AK117: 8784000 | AL117: -868
A118: 2024-08-24 | B118: 2024 | C118: 8 | D118: محمدابدول | E118: جاز | F118: 5510979 | G118: 5511591 | H118: 612 | I118: 5923530 | J118: 5925071 | K118: 1541 | L118: 69348 | M118: 69353 | N118: 5 | O118: 102275 | P118: 102275 | Q118: 0 | R118: 84104 | S118: 84104 | T118: 0 | U118: 4172881 | V118: 4172881 | W118: 0 | X118: 2187833 | Y118: 2187833 | Z118: 0 | AA118: 273975 | AB118: 273975 | AC118: 0 | AD118: 2158 | AE118: 3296.5 | AF118: جمله المبيعات | AG118: 7113847 | AH118: 476500 | AI118: 72400 | AJ118: 200000 | AK118: 6364947 | AL118: 0
A119: 2024-08-25 | B119: 2024 | C119: 8 | D119: ودشرف | E119: جاز | F119: 5511591 | G119: 5513058 | H119: 1467 | I119: 5925071 | J119: 5926204 | K119: 1133 | L119: 69353 | M119: 69356 | N119: 3 | O119: 102275 | P119: 102275 | Q119: 0 | R119: 84104 | S119: 84104 | T119: 0 | U119: 4172881 | V119: 4172881 | W119: 0 | X119: 2187833 | Y119: 2187833 | Z119: 0 | AA119: 273975 | AB119: 273975 | AC119: 0 | AD119: 2603 | AE119: 3296.5 | AF119: جمله المبيعات | AG119: 8580789 | AH119: 0 | AI119: 207000 | AJ119: 300000 | AK119: 8073000 | AL119: -789
A120: 2024-08-25 | B120: 2024 | C120: 8 | D120: محمدابدول | E120: بنزين | F120: 5513058 | G120: 5513058 | H120: 0 | I120: 5926204 | J120: 5926204 | K120: 0 | L120: 69356 | M120: 69356 | N120: 0 | O120: 102275 | P120: 102275 | Q120: 0 | R120: 84104 | S120: 84104 | T120: 0 | U120: 4172881 | V120: 4173924 | W120: 1043 | X120: 2187833 | Y120: 2187991 | Z120: 158 | AA120: 273975 | AB120: 275969 | AC120: 1994 | AD120: 3195 | AE120: 3284 | AF120: جمله المبيعات | AG120: 10492380 | AH120: 2624700 | AI120: 88000 | AJ120: 373500 | AK120: 7406180 | AL120: 0
A121: 2024-08-26 | B121: 2024 | C121: 8 | D121: بنجوس | E121: بنزين | F121: 5513058 | G121: 5513058 | H121: 0 | I121: 5926204 | J121: 5926204 | K121: 0 | L121: 69356 | M121: 69356 | N121: 0 | O121: 102275 | P121: 102275 | Q121: 0 | R121: 84104 | S121: 84104 | T121: 0 | U121: 4173924 | V121: 4176323 | W121: 2399 | X121: 2187991 | Y121: 2188318 | Z121: 327 | AA121: 275969 | AB121: 276830 | AC121: 861 | AD121: 3587 | AE121: 3280.8 | AF121: جمله المبيعات | AG121: 11768229 | AH121: 0 | AI121: 1640000 | AJ121: 410000 | AK121: 9719000 | AL121: 771
A122: 2024-08-26 | B122: 2024 | C122: 8 | D122: كبشور | E122: جاز | F122: 5513058 | G122: 5514999 | H122: 1941 | I122: 5926204 | J122: 5927656 | K122: 1452 | L122: 69356 | M122: 69356 | N122: 0 | O122: 102275 | P122: 102275 | Q122: 0 | R122: 84104 | S122: 84104 | T122: 0 | U122: 4176323 | V122: 4176323 | W122: 0 | X122: 2188318 | Y122: 2188318 | Z122: 0 | AA122: 276830 | AB122: 276830 | AC122: 0 | AD122: 3393 | AE122: 3296.5 | AF122: جمله المبيعات | AG122: 11185024 | AH122: 0 | AI122: 775000 | AJ122: 250000 | AK122: 10160000 | AL122: -24
A123: 2024-08-27 | B123: 2024 | C123: 8 | D123: بنجوس | E123: جاز | F123: 5514999 | G123: 5515349 | H123: 350 | I123: 5927656 | J123: 5928153 | K123: 497 | L123: 69356 | M123: 69356 | N123: 0 | O123: 102275 | P123: 102275 | Q123: 0 | R123: 84104 | S123: 84104 | T123: 0 | U123: 4176323 | V123: 4176323 | W123: 0 | X123: 2188318 | Y123: 2188318 | Z123: 0 | AA123: 276830 | AB123: 276830 | AC123: 0 | AD123: 847 | AE123: 3296.5 | AF123: جمله المبيعات | AG123: 2792135 | AH123: 0 | AI123: 120000 | AJ123: 150000 | AK123: 2522500 | AL123: 365
A124: 2024-08-27 | B124: 2024 | C124: 8 | D124: كبشور | E124: بنزين | F124: 5515349 | G124: 5515349 | H124: 0 | I124: 5928153 | J124: 5928153 | K124: 0 | L124: 69356 | M124: 69356 | N124: 0 | O124: 102275 | P124: 102275 | Q124: 0 | R124: 84104 | S124: 84104 | T124: 0 | U124: 4176323 | V124: 4177531 | W124: 1208 | X124: 2188318 | Y124: 2188479 | Z124: 161 | AA124: 276830 | AB124: 277297 | AC124: 467 | AD124: 1836 | AE124: 3250 | AF124: جمله المبيعات | AG124: 5967000 | AH124: 50000 | AI124: 67000 | AJ124: 250000 | AK124: 5600000 | AL124: 0
A125: 2024-08-28 | B125: 2024 | C125: 8 | D125: محمدابدول | E125: جاز | F125: 5515349 | G125: 5516014 | H125: 665 | I125: 5928153 | J125: 5929220 | K125: 1067 | L125: 69356 | M125: 69356 | N125: 0 | O125: 102275 | P125: 102275 | Q125: 0 | R125: 84104 | S125: 84104 | T125: 0 | U125: 4177531 | V125: 4177531 | W125: 0 | X125: 2188479 | Y125: 2188479 | Z125: 0 | AA125: 277297 | AB125: 277297 | AC125: 0 | AD125: 1732 | AE125: 3296.5 | AF125: جمله المبيعات | AG125: 5709538 | AH125: 228000 | AI125: 0 | AJ125: 0 | AK125: 5481538 | AL125: 0
A126: 2024-08-28 | B126: 2024 | C126: 8 | D126: ودشرف | E126: بنزين | F126: 5516014 | G126: 5516014 | H126: 0 | I126: 5929220 | J126: 5929220 | K126: 0 | L126: 69356 | M126: 69356 | N126: 0 | O126: 102275 | P126: 102275 | Q126: 0 | R126: 84104 | S126: 84104 | T126: 0 | U126: 4177531 | V126: 4178944 | W126: 1413 | X126: 2188479 | Y126: 2188657 | Z126: 178 | AA126: 277297 | AB126: 278226 | AC126: 929 | AD126: 2520 | AE126: 3250 | AF126: جمله المبيعات | AG126: 8190000 | AH126: 0 | AI126: 7745000 | AJ126: 500000 | AK126: 0 | AL126: 0
A127: 2024-08-29 | B127: 2024 | C127: 8 | D127: ودشرف | E127: جاز | F127: 5516014 | G127: 5517028 | H127: 1014 | I127: 5929220 | J127: 5929721 | K127: 501 | L127: 69356 | M127: 69356 | N127: 0 | O127: 102275 | P127: 102275 | Q127: 0 | R127: 84104 | S127: 84104 | T127: 0 | U127: 4178944 | V127: 4178944 | W127: 0 | X127: 2188657 | Y127: 2188657 | Z127: 0 | AA127: 278226 | AB127: 278226 | AC127: 0 | AD127: 1515 | AE127: 3296.5 | AF127: جمله المبيعات | AG127: 4994197 | AH127: 0 | AI127: 195800 | AJ127: 0 | AK127: 4798000 | AL127: -397
A128: 2024-08-29 | B128: 2024 | C128: 8 | D128: محمدابدول | E128: بنزين | F128: 5517028 | G128: 5517028 | H128: 0 | I128: 5929721 | J128: 5929721 | K128: 0 | L128: 69356 | M128: 69356 | N128: 0 | O128: 102275 | P128: 102275 | Q128: 0 | R128: 84104 | S128: 84104 | T128: 0 | U128: 4178944 | V128: 4180721 | W128: 1777 | X128: 2188657 | Y128: 2188768 | Z128: 111 | AA128: 278226 | AB128: 278857 | AC128: 631 | AD128: 2519 | AE128: 3250 | AF128: جمله المبيعات | AG128: 8186750 | AH128: 0 | AI128: 1945000 | AJ128: 250000 | AK128: 5991750 | AL128: 0
A129: 2024-08-30 | B129: 2024 | C129: 8 | D129: كبشور | E129: جاز | F129: 5517028 | G129: 5517930 | H129: 902 | I129: 5929721 | J129: 5930202 | K129: 481 | L129: 69356 | M129: 69356 | N129: 0 | O129: 102275 | P129: 102275 | Q129: 0 | R129: 84104 | S129: 84104 | T129: 0 | U129: 4180721 | V129: 4180721 | W129: 0 | X129: 2188768 | Y129: 2188768 | Z129: 0 | AA129: 278857 | AB129: 278857 | AC129: 0 | AD129: 1383 | AE129: 3252 | AF129: جمله المبيعات | AG129: 4497516 | AH129: 20000 | AI129: 60000 | AJ129: 0 | AK129: 4417000 | AL129: -516
A130: 2024-08-30 | B130: 2024 | C130: 8 | D130: بنجوس | E130: بنزين | F130: 5517930 | G130: 5517930 | H130: 0 | I130: 5930202 | J130: 5930202 | K130: 0 | L130: 69356 | M130: 69356 | N130: 0 | O130: 102275 | P130: 102275 | Q130: 0 | R130: 84104 | S130: 84104 | T130: 0 | U130: 4180721 | V130: 4182000 | W130: 1279 | X130: 2188768 | Y130: 2188842 | Z130: 74 | AA130: 278857 | AB130: 279193 | AC130: 336 | AD130: 1689 | AE130: 3250 | AF130: جمله المبيعات | AG130: 5489250 | AH130: 0 | AI130: 186000 | AJ130: 0 | AK130: 5303500 | AL130: 250
A131: 2024-08-31 | B131: 2024 | C131: 8 | D131: بنجوس | E131: جاز | F131: 5517930 | G131: 5518190 | H131: 260 | I131: 5930202 | J131: 5931241 | K131: 1039 | L131: 69356 | M131: 69356 | N131: 0 | O131: 102275 | P131: 102275 | Q131: 0 | R131: 84104 | S131: 84104 | T131: 0 | U131: 4182000 | V131: 4182000 | W131: 0 | X131: 2188842 | Y131: 2188842 | Z131: 0 | AA131: 279193 | AB131: 279193 | AC131: 0 | AD131: 1299 | AE131: 3223 | AF131: جمله المبيعات | AG131: 4186677 | AH131: 0 | AI131: 120000 | AJ131: 46000 | AK131: 4021000 | AL131: 323
A132: 2024-08-31 | B132: 2024 | C132: 8 | D132: كبشور | E132: بنزين | F132: 5518190 | G132: 5518190 | H132: 0 | I132: 5931241 | J132: 5931241 | K132: 0 | L132: 69356 | M132: 69356 | N132: 0 | O132: 102275 | P132: 102275 | Q132: 0 | R132: 84104 | S132: 84104 | T132: 0 | U132: 4182000 | V132: 4183803 | W132: 1803 | X132: 2188842 | Y132: 2188946 | Z132: 104 | AA132: 279193 | AB132: 280024 | AC132: 831 | AD132: 2738 | AE132: 3250 | AF132: جمله المبيعات | AG132: 8898500 | AH132: 25000 | AI132: 3000000 | AJ132: 250000 | AK132: 5623500 | AL132: 0
A133: 2024-09-01 | B133: 2024 | C133: 9 | D133: ودشرف | E133: بنزين | F133: 5518190 | G133: 5518190 | H133: 0 | I133: 5931241 | J133: 5931241 | K133: 0 | L133: 69356 | M133: 69356 | N133: 0 | O133: 102275 | P133: 102275 | Q133: 0 | R133: 84104 | S133: 84104 | T133: 0 | U133: 4183803 | V133: 4185464 | W133: 1661 | X133: 2188946 | Y133: 2189108 | Z133: 162 | AA133: 280024 | AB133: 281012 | AC133: 988 | AD133: 2811 | AE133: 3250 | AF133: جمله المبيعات | AG133: 9135750 | AH133: 0 | AI133: 20000 | AJ133: 250000 | AK133: 8865000 | AL133: -750
A134: 2024-09-01 | B134: 2024 | C134: 9 | D134: محمدابدول | E134: جاز | F134: 5518190 | G134: 5519251 | H134: 1061 | I134: 5931241 | J134: 5932770 | K134: 1529 | L134: 69356 | M134: 69356 | N134: 0 | O134: 102275 | P134: 102275 | Q134: 0 | R134: 84104 | S134: 84104 | T134: 0 | U134: 4185464 | V134: 4185464 | W134: 0 | X134: 2189108 | Y134: 2189108 | Z134: 0 | AA134: 281012 | AB134: 281012 | AC134: 0 | AD134: 2590 | AE134: 3223 | AF134: جمله المبيعات | AG134: 8347570 | AH134: 0 | AI134: 153000 | AJ134: 89000 | AK134: 8105570 | AL134: 0
A135: 2024-09-02 | B135: 2024 | C135: 9 | D135: ودشرف | E135: جاز | F135: 5519251 | G135: 5520263 | H135: 1012 | I135: 5932770 | J135: 5933452 | K135: 682 | L135: 69356 | M135: 69356 | N135: 0 | O135: 102275 | P135: 102275 | Q135: 0 | R135: 84104 | S135: 84104 | T135: 0 | U135: 4185464 | V135: 4185464 | W135: 0 | X135: 2189108 | Y135: 2189108 | Z135: 0 | AA135: 281012 | AB135: 281012 | AC135: 0 | AD135: 1694 | AE135: 3223 | AF135: جمله المبيعات | AG135: 5459762 | AH135: 0 | AI135: 0 | AJ135: 2500000 | AK135: 2959000 | AL135: =IFERROR((AH135+AI135+AJ135+AK135)-AG135,"") -> -762
A136: 2024-09-02 | B136: =IF(A136<>"",YEAR(A136),"") -> 2024 | C136: =IF(A136<>"",MONTH(A136),"") -> 9 | D136: محمدابدول | E136: بنزين | F136: 5520263 | G136: 5520263 | H136: 0 | I136: 5933452 | J136: 5933452 | K136: 0 | L136: =IF($A136<>"",IF($E136<>"توريده",M135,0),"") -> 69356 | M136: 69356 | N136: 0 | O136: =IF($A136<>"",IF($E136<>"توريده",P135,0),"") -> 102275 | P136: 102275 | Q136: 0 | R136: =IF($A136<>"",IF($E136<>"توريده",S135,0),"") -> 84104 | S136: 84104 | T136: 0 | U136: 4185464 | V136: 4187265 | W136: 1801 | X136: =IF($A136<>"",IF($E136<>"توريده",Y135,0),"") -> 2189108 | Y136: 2189227 | Z136: 119 | AA136: =IF($A136<>"",IF($E136<>"توريده",AB135,0),"") -> 281012 | AB136: 281595 | AC136: 583 | AD136: 2503 | AE136: 3250 | AF136: جمله المبيعات | AG136: =IFERROR(ROUNDDOWN(IF(A136<>"",IF(E136="توريده","",AD136*AE136),""),0),"") -> 8134750 | AH136: 300000 | AI136: 0 | AJ136: 370000 | AK136: 7464000 | AL136: -750
A137: 2024-09-03 | B137: 2024 | C137: 9 | D137: كبشور | E137: جاز | F137: 5520263 | G137: 5521077 | H137: =IFERROR(G137-F137,"") -> 814 | I137: 5933452 | J137: 5934753 | K137: =IFERROR(J137-I137,"") -> 1301 | L137: 69356 | M137: 69356 | N137: =IFERROR(M137-L137,"") -> 0 | O137: 102275 | P137: 102275 | Q137: =IFERROR(P137-O137,"") -> 0 | R137: 84104 | S137: 84104 | T137: =IFERROR(S137-R137,"") -> 0 | U137: =IF($A137<>"",IF($E137<>"توريده",V136,0),"") -> 4187265 | V137: =IF($A137<>"",IF($E137<>"بنزين",U137,""),"") -> 4187265 | W137: =IFERROR(V137-U137,"") -> 0 | X137: 2189227 | Y137: =IF($A137<>"",IF($E137<>"بنزين",X137,""),"") -> 2189227 | Z137: =IFERROR(Y137-X137,"") -> 0 | AA137: 281595 | AB137: =IF($A137<>"",IF($E137<>"بنزين",AA137,""),"") -> 281595 | AC137: =IFERROR(AB137-AA137,"") -> 0 | AD137: =IFERROR(IF(E137="توريده","",IF(E137="بنزين",W137+Z137+AC137,T137+Q137+N137+K137+H137)),"") -> 2115 | AE137: 3223 | AF137: جمله المبيعات | AG137: 6816645 | AH137: 0 | AI137: 50000 | AJ137: 250000 | AK137: 6516500 | AL137: -145
A138: 2024-09-03 | B138: 2024 | C138: 9 | D138: بنجوس | E138: بنزين | F138: =IF($A138<>"",IF($E138<>"توريده",G137,0),"") -> 5521077 | G138: =IF($E138<>"جاز",F138,"") -> 5521077 | H138: 0 | I138: 5934753 | J138: =IF($E138<>"جاز",I138,"") -> 5934753 | K138: 0 | L138: 69356 | M138: =IF($E138<>"جاز",L138,"") -> 69356 | N138: 0 | O138: 102275 | P138: =IF($E138<>"جاز",O138,"") -> 102275 | Q138: 0 | R138: 84104 | S138: =IF($E138<>"جاز",R138,"") -> 84104 | T138: 0 | U138: 4187265 | V138: 4189181 | W138: 1916 | X138: 2189227 | Y138: 2189391 | Z138: 164 | AA138: 281595 | AB138: 282149 | AC138: 554 | AD138: 2634 | AE138: 3250 | AF138: جمله المبيعات | AG138: 8560500 | AH138: 0 | AI138: 0 | AJ138: 150000 | AK138: 8411000 | AL138: 500
A139: 2024-09-04 | B139: 2024 | C139: 9 | D139: بنجوس | E139: جاز | F139: 5521077 | G139: 5522285 | H139: 1208 | I139: 5934753 | J139: 5935900 | K139: 1147 | L139: 69356 | M139: 69356 | N139: 0 | O139: 102275 | P139: 102275 | Q139: 0 | R139: 84104 | S139: 84104 | T139: 0 | U139: 4189181 | V139: 4189181 | W139: 0 | X139: 2189391 | Y139: 2189391 | Z139: 0 | AA139: 282149 | AB139: 282149 | AC139: 0 | AD139: 2355 | AE139: 3223 | AF139: جمله المبيعات | AG139: 7590165 | AH139: 0 | AI139: 60000 | AJ139: 0 | AK139: 7530500 | AL139: 335
A140: 2024-09-04 | B140: 2024 | C140: 9 | D140: كبشور | E140: بنزين | F140: 5522285 | G140: 5522285 | H140: 0 | I140: 5935900 | J140: 5935900 | K140: 0 | L140: 69356 | M140: 69356 | N140: 0 | O140: 102275 | P140: 102275 | Q140: 0 | R140: 84104 | S140: 84104 | T140: 0 | U140: 4189181 | V140: 4191224 | W140: 2043 | X140: 2189391 | Y140: 2189683 | Z140: 292 | AA140: 282149 | AB140: 282641 | AC140: 492 | AD140: 2827 | AE140: 3250 | AF140: جمله المبيعات | AG140: 9187750 | AH140: 0 | AI140: 658000 | AJ140: 250000 | AK140: 8280000 | AL140: 250
A141: 2024-09-05 | B141: 2024 | C141: 9 | D141: ودشرف | E141: بنزين | F141: 5522285 | G141: 5522285 | H141: 0 | I141: 5935900 | J141: 5935900 | K141: 0 | L141: 69356 | M141: 69356 | N141: 0 | O141: 102275 | P141: 102275 | Q141: 0 | R141: 84104 | S141: 84104 | T141: 0 | U141: 4191224 | V141: 4193219 | W141: 1995 | X141: 2189683 | Y141: 2189921 | Z141: 238 | AA141: 282641 | AB141: 283719 | AC141: 1078 | AD141: 3311 | AE141: 3250 | AF141: جمله المبيعات | AG141: 10760750 | AH141: 0 | AI141: 3096500 | AJ141: 300000 | AK141: 7364000 | AL141: -250
A142: 2024-09-05 | B142: 2024 | C142: 9 | D142: محمدابدول | E142: جاز | F142: 5522285 | G142: 5524658 | H142: 2373 | I142: 5935900 | J142: 5936877 | K142: 977 | L142: 69356 | M142: 69701 | N142: 345 | O142: 102275 | P142: 102306 | Q142: 31 | R142: 84104 | S142: 84104 | T142: 0 | U142: 4193219 | V142: 4193219 | W142: 0 | X142: 2189921 | Y142: 2189921 | Z142: 0 | AA142: 283719 | AB142: 283719 | AC142: 0 | AD142: 3726 | AE142: 3223 | AF142: جمله المبيعات | AG142: 12008898 | AH142: 0 | AI142: 569000 | AJ142: 0 | AK142: 11439898 | AL142: 0
A143: 2024-09-06 | B143: 2024 | C143: 9 | D143: ودشرف | E143: جاز | F143: 5524658 | G143: 5525033 | H143: 375 | I143: 5936877 | J143: 5937270 | K143: 393 | L143: 69701 | M143: 70454 | N143: 753 | O143: 102306 | P143: 102306 | Q143: 0 | R143: 84104 | S143: 84104 | T143: 0 | U143: 4193219 | V143: 4193219 | W143: 0 | X143: 2189921 | Y143: 2189921 | Z143: 0 | AA143: 283719 | AB143: 283719 | AC143: 0 | AD143: 1521 | AE143: 3223 | AF143: جمله المبيعات | AG143: 4902183 | AH143: 0 | AI143: 50000 | AJ143: 0 | AK143: 4852000 | AL143: -183
A144: 2024-09-06 | B144: 2024 | C144: 9 | D144: محمدابدول | E144: بنزين | F144: 5525033 | G144: 5525033 | H144: 0 | I144: 5937270 | J144: 5937270 | K144: 0 | L144: 70454 | M144: 70454 | N144: 0 | O144: 102306 | P144: 102306 | Q144: 0 | R144: 84104 | S144: 84104 | T144: 0 | U144: 4193219 | V144: 4194534 | W144: 1315 | X144: 2189921 | Y144: 2190024 | Z144: 103 | AA144: 283719 | AB144: 285285 | AC144: 1566 | AD144: 2984 | AE144: 3250 | AF144: جمله المبيعات | AG144: 9698000 | AH144: 600000 | AI144: 17000 | AJ144: 250000 | AK144: 8831000 | AL144: 0
A145: 2024-09-07 | B145: 2024 | C145: 9 | D145: كبشور | E145: جاز | F145: 5525033 | G145: 5525921 | H145: 888 | I145: 5937270 | J145: 5938685 | K145: 1415 | L145: 70454 | M145: 70454 | N145: 0 | O145: 102306 | P145: 102306 | Q145: 0 | R145: 84104 | S145: 84104 | T145: 0 | U145: 4194534 | V145: 4194534 | W145: 0 | X145: 2190024 | Y145: 2190024 | Z145: 0 | AA145: 285285 | AB145: 285285 | AC145: 0 | AD145: 2303 | AE145: 3223 | AF145: جمله المبيعات | AG145: 7422569 | AH145: 0 | AI145: 0 | AJ145: 250000 | AK145: 7172500 | AL145: -69
A146: 2024-09-07 | B146: 2024 | C146: 9 | D146: بنجوس | E146: بنزين | F146: 5525921 | G146: 5525921 | H146: 0 | I146: 5938685 | J146: 5938685 | K146: 0 | L146: 70454 | M146: 70454 | N146: 0 | O146: 102306 | P146: 102306 | Q146: 0 | R146: 84104 | S146: 84104 | T146: 0 | U146: 4194534 | V146: 4197097 | W146: 2563 | X146: 2190024 | Y146: 2190345 | Z146: 321 | AA146: 285285 | AB146: 286152 | AC146: 867 | AD146: 3751 | AE146: 3250 | AF146: جمله المبيعات | AG146: 12190750 | AH146: 0 | AI146: 270000 | AJ146: 376000 | AK146: 11545000 | AL146: 250
A147: 2024-09-08 | B147: 2024 | C147: 9 | D147: بنجوس | E147: جاز | F147: 5525921 | G147: 5527220 | H147: 1299 | I147: 5938685 | J147: 5939905 | K147: 1220 | L147: 70454 | M147: 70454 | N147: 0 | O147: 102306 | P147: 102306 | Q147: 0 | R147: 84104 | S147: 84104 | T147: 0 | U147: 4197097 | V147: 4197097 | W147: 0 | X147: 2190345 | Y147: 2190345 | Z147: 0 | AA147: 286152 | AB147: 286152 | AC147: 0 | AD147: 2519 | AE147: 3223 | AF147: جمله المبيعات | AG147: 8118737 | AH147: 0 | AI147: 90000 | AJ147: 0 | AK147: 8028029 | AL147: -708
A148: 2024-09-08 | B148: 2024 | C148: 9 | D148: كبشور | E148: بنزين | F148: 5527220 | G148: 5527220 | H148: 0 | I148: 5939905 | J148: 5939905 | K148: 0 | L148: 70454 | M148: 70454 | N148: 0 | O148: 102306 | P148: 102306 | Q148: 0 | R148: 84104 | S148: 84104 | T148: 0 | U148: 4197097 | V148: 4199340 | W148: 2243 | X148: 2190345 | Y148: 2190551 | Z148: 206 | AA148: 286152 | AB148: 286905 | AC148: 753 | AD148: 3202 | AE148: 3250 | AF148: جمله المبيعات | AG148: 10406500 | AH148: 0 | AI148: 261700 | AJ148: 2750000 | AK148: 7395000 | AL148: 200
A149: 2024-09-09 | B149: 2024 | C149: 9 | D149: ودشرف | E149: بنزين | F149: 5527220 | G149: 5527220 | H149: 0 | I149: 5939905 | J149: 5939905 | K149: 0 | L149: 70454 | M149: 70454 | N149: 0 | O149: 102306 | P149: 102306 | Q149: 0 | R149: 84104 | S149: 84104 | T149: 0 | U149: 4199340 | V149: 4200952 | W149: 1612 | X149: 2190551 | Y149: 2190666 | Z149: 115 | AA149: 286905 | AB149: 288265 | AC149: 1360 | AD149: 3087 | AE149: 3250 | AF149: جمله المبيعات | AG149: 10032750 | AH149: 0 | AI149: 2726300 | AJ149: 1060000 | AK149: 6245875 | AL149: -575
A150: 2024-09-09 | B150: 2024 | C150: 9 | D150: محمدابدول | E150: جاز | F150: 5527220 | G150: 5528264 | H150: 1044 | I150: 5939905 | J150: 5941056 | K150: 1151 | L150: 70454 | M150: 70454 | N150: 0 | O150: 102306 | P150: 102306 | Q150: 0 | R150: 84104 | S150: 84104 | T150: 0 | U150: 4200952 | V150: 4200952 | W150: 0 | X150: 2190666 | Y150: 2190666 | Z150: 0 | AA150: 288265 | AB150: 288265 | AC150: 0 | AD150: 2195 | AE150: 3223 | AF150: جمله المبيعات | AG150: 7074485 | AH150: 0 | AI150: 1650000 | AJ150: 190000 | AK150: 5234485 | AL150: 0
A151: 2024-09-10 | B151: 2024 | C151: 9 | D151: ودشرف | E151: جاز | F151: 5528264 | G151: 5530863 | H151: 2599 | I151: 5941056 | J151: 5941837 | K151: 781 | L151: 70454 | M151: 70454 | N151: 0 | O151: 102306 | P151: 102306 | Q151: 0 | R151: 84104 | S151: 84104 | T151: 0 | U151: 4200952 | V151: 4200952 | W151: 0 | X151: 2190666 | Y151: 2190666 | Z151: 0 | AA151: 288265 | AB151: 288265 | AC151: 0 | AD151: 3380 | AE151: 3223 | AF151: جمله المبيعات | AG151: 10893740 | AH151: 0 | AI151: 0 | AJ151: 120000 | AK151: 10773000 | AL151: -740
A152: 2024-09-10 | B152: 2024 | C152: 9 | D152: محمدابدول | E152: بنزين | F152: 5530863 | G152: 5530863 | H152: 0 | I152: 5941837 | J152: 5941837 | K152: 0 | L152: 70454 | M152: 70454 | N152: 0 | O152: 102306 | P152: 102306 | Q152: 0 | R152: 84104 | S152: 84104 | T152: 0 | U152: 4200952 | V152: 4202777 | W152: 1825 | X152: 2190666 | Y152: 2190760 | Z152: 94 | AA152: 288265 | AB152: 289291 | AC152: 1026 | AD152: 2945 | AE152: 3250 | AF152: جمله المبيعات | AG152: 9571250 | AH152: 0 | AI152: 43000 | AJ152: 250000 | AK152: 9278250 | AL152: 0
A153: 2024-09-11 | B153: 2024 | C153: 9 | D153: كبشور | E153: جاز | F153: 5530863 | G153: 5531975 | H153: 1112 | I153: =IF($A153<>"",IF($E153<>"توريده",J152,0),"") -> 5941837 | J153: 5942707 | K153: 870 | L153: 70454 | M153: 70454 | N153: 0 | O153: 102306 | P153: 102306 | Q153: 0 | R153: 84104 | S153: 84104 | T153: 0 | U153: 4202777 | V153: 4202777 | W153: 0 | X153: 2190760 | Y153: 2190760 | Z153: 0 | AA153: 289291 | AB153: 289291 | AC153: 0 | AD153: 1982 | AE153: 3223 | AF153: جمله المبيعات | AG153: 6387986 | AH153: 0 | AI153: 0 | AJ153: 250000 | AK153: 6157000 | AL153: 19014
A154: 2024-09-11 | B154: 2024 | C154: 9 | D154: بنجوس | E154: بنزين | F154: 5531975 | G154: 5531975 | H154: 0 | I154: 5942707 | J154: 5942707 | K154: 0 | L154: 70454 | M154: 70454 | N154: 0 | O154: 102306 | P154: 102306 | Q154: 0 | R154: 84104 | S154: 84104 | T154: 0 | U154: 4202777 | V154: 4204615 | W154: 1838 | X154: 2190760 | Y154: 2190961 | Z154: 201 | AA154: 289291 | AB154: 289974 | AC154: 683 | AD154: 2722 | AE154: 3250 | AF154: جمله المبيعات | AG154: 8846500 | AH154: 0 | AI154: 2492600 | AJ154: 0 | AK154: 6354000 | AL154: 100
A155: 2024-09-12 | B155: 2024 | C155: 9 | D155: بنجوس | E155: جاز | F155: 5531975 | G155: 5533147 | H155: 1172 | I155: 5942707 | J155: 5944026 | K155: 1319 | L155: 70454 | M155: 70454 | N155: 0 | O155: 102306 | P155: 102306 | Q155: 0 | R155: 84104 | S155: 84104 | T155: 0 | U155: 4204615 | V155: 4204615 | W155: 0 | X155: 2190961 | Y155: 2190961 | Z155: 0 | AA155: 289974 | AB155: 289974 | AC155: 0 | AD155: 2491 | AE155: 3223 | AF155: جمله المبيعات | AG155: 8028493 | AH155: 0 | AI155: 0 | AJ155: 0 | AK155: 8028500 | AL155: 7
A156: 2024-09-12 | B156: 2024 | C156: 9 | D156: كبشور | E156: بنزين | F156: 5533147 | G156: 5533147 | H156: 0 | I156: 5944026 | J156: 5944026 | K156: 0 | L156: 70454 | M156: 70454 | N156: 0 | O156: 102306 | P156: 102306 | Q156: 0 | R156: 84104 | S156: 84104 | T156: 0 | U156: 4204615 | V156: 4207274 | W156: 2659 | X156: 2190961 | Y156: 2191397 | Z156: 436 | AA156: 289974 | AB156: 290841 | AC156: 867 | AD156: 3962 | AE156: 3236 | AF156: جمله المبيعات | AG156: 12821032 | AH156: 0 | AI156: 217400 | AJ156: 400000 | AK156: 12204000 | AL156: 368
A157: 2024-09-13 | B157: 2024 | C157: 9 | D157: محمدابدول | E157: جاز | F157: 5533147 | G157: 5533740 | H157: 593 | I157: 5944026 | J157: 5944693 | K157: 667 | L157: 70454 | M157: 70454 | N157: 0 | O157: 102306 | P157: 102306 | Q157: 0 | R157: 84104 | S157: 84104 | T157: 0 | U157: 4207274 | V157: 4207274 | W157: 0 | X157: 2191397 | Y157: 2191397 | Z157: 0 | AA157: 290841 | AB157: 290841 | AC157: 0 | AD157: 1260 | AE157: 3223 | AF157: جمله المبيعات | AG157: 4060980 | AH157: 0 | AI157: 50000 | AJ157: 0 | AK157: 4010980 | AL157: 0
A158: 2024-09-13 | B158: 2024 | C158: 9 | D158: ودشرف | E158: بنزين | F158: 5533740 | G158: 5533740 | H158: 0 | I158: 5944693 | J158: 5944693 | K158: 0 | L158: 70454 | M158: 70454 | N158: 0 | O158: 102306 | P158: 102306 | Q158: 0 | R158: 84104 | S158: 84104 | T158: 0 | U158: 4207274 | V158: 4209301 | W158: 2027 | X158: 2191397 | Y158: 2191780 | Z158: 383 | AA158: 290841 | AB158: 291241 | AC158: 400 | AD158: 2810 | AE158: 3236 | AF158: جمله المبيعات | AG158: 9093160 | AH158: 0 | AI158: 72000 | AJ158: 0 | AK158: 9021000 | AL158: -160
A159: 2024-09-14 | B159: 2024 | C159: 9 | D159: محمدابدول | E159: بنزين | F159: 5533740 | G159: 5533740 | H159: 0 | I159: 5944693 | J159: 5944693 | K159: 0 | L159: 70454 | M159: 70454 | N159: 0 | O159: 102306 | P159: 102306 | Q159: 0 | R159: 84104 | S159: 84104 | T159: 0 | U159: 4209301 | V159: 4211157 | W159: 1856 | X159: 2191780 | Y159: 2191818 | Z159: 38 | AA159: 291241 | AB159: 292119 | AC159: 878 | AD159: 2772 | AE159: 3236 | AF159: جمله المبيعات | AG159: 8970192 | AH159: 0 | AI159: 178900 | AJ159: 830000 | AK159: 7961292 | AL159: 0
A160: 2024-09-14 | B160: 2024 | C160: 9 | D160: ودشرف | E160: جاز | F160: 5533740 | G160: 5535677 | H160: 1937 | I160: 5944693 | J160: 5945358 | K160: 665 | L160: 70454 | M160: 70454 | N160: 0 | O160: 102306 | P160: 102306 | Q160: 0 | R160: 84104 | S160: 84104 | T160: 0 | U160: 4211157 | V160: 4211157 | W160: 0 | X160: 2191818 | Y160: 2191818 | Z160: 0 | AA160: 292119 | AB160: 292119 | AC160: 0 | AD160: 2602 | AE160: 3223 | AF160: جمله المبيعات | AG160: 8386246 | AH160: 0 | AI160: 0 | AJ160: 0 | AK160: 8386000 | AL160: -246
A161: 2024-09-15 | B161: 2024 | C161: 9 | D161: بنجوس | E161: جاز | F161: 5535677 | G161: 5536970 | H161: 1293 | I161: 5945358 | J161: 5946226 | K161: 868 | L161: 70454 | M161: 70661 | N161: 207 | O161: 102306 | P161: 102324 | Q161: 18 | R161: 84104 | S161: 84104 | T161: 0 | U161: 4211157 | V161: 4211157 | W161: 0 | X161: 2191818 | Y161: 2191818 | Z161: 0 | AA161: 292119 | AB161: 292119 | AC161: 0 | AD161: 2386 | AE161: 3223 | AF161: جمله المبيعات | AG161: 7690078 | AH161: 0 | AI161: 15000 | AJ161: 0 | AK161: 7675500 | AL161: 422
A162: 2024-09-15 | B162: 2024 | C162: 9 | D162: كبشور | E162: بنزين | F162: 5536970 | G162: 5536970 | H162: 0 | I162: 5946226 | J162: 5946226 | K162: 0 | L162: 70661 | M162: 70661 | N162: 0 | O162: 102324 | P162: 102324 | Q162: 0 | R162: 84104 | S162: 84104 | T162: 0 | U162: 4211157 | V162: 4213526 | W162: 2369 | X162: 2191818 | Y162: 2192036 | Z162: 218 | AA162: 292119 | AB162: 292680 | AC162: 561 | AD162: 3148 | AE162: 3236 | AF162: جمله المبيعات | AG162: 10186928 | AH162: 0 | AI162: 3015300 | AJ162: 550000 | AK162: 6621700 | AL162: 72
A163: 2024-09-16 | B163: 2024 | C163: 9 | D163: بنجوس | E163: بنزين | F163: 5536970 | G163: 5536970 | H163: 0 | I163: 5946226 | J163: 5946226 | K163: 0 | L163: 70661 | M163: 70661 | N163: 0 | O163: 102324 | P163: 102324 | Q163: 0 | R163: 84104 | S163: 84104 | T163: 0 | U163: 4213526 | V163: 4215834 | W163: 2308 | X163: 2192036 | Y163: 2192191 | Z163: 155 | AA163: 292680 | AB163: 293539 | AC163: 859 | AD163: 3322 | AE163: 3236 | AF163: جمله المبيعات | AG163: 10749992 | AH163: 0 | AI163: 3000 | AJ163: 250000 | AK163: 10497000 | AL163: 8
A164: 2024-09-16 | B164: 2024 | C164: 9 | D164: كبشور | E164: جاز | F164: 5536970 | G164: 5538837 | H164: 1867 | I164: 5946226 | J164: 5947397 | K164: 1171 | L164: 70661 | M164: 70833 | N164: 172 | O164: 102324 | P164: 102324 | Q164: 0 | R164: 84104 | S164: 84104 | T164: 0 | U164: 4215834 | V164: 4215834 | W164: 0 | X164: 2192191 | Y164: 2192191 | Z164: 0 | AA164: 293539 | AB164: 293539 | AC164: 0 | AD164: 3210 | AE164: 3223 | AF164: جمله المبيعات | AG164: 10345830 | AH164: 0 | AI164: 0 | AJ164: 0 | AK164: 10346000 | AL164: 170
A165: 2024-09-17 | B165: 2024 | C165: 9 | D165: محمدابدول | E165: جاز | F165: 5538837 | G165: 5539878 | H165: 1041 | I165: 5947397 | J165: 5948708 | K165: 1311 | L165: 70833 | M165: 70833 | N165: 0 | O165: 102324 | P165: 102324 | Q165: 0 | R165: 84104 | S165: 84104 | T165: 0 | U165: 4215834 | V165: 4215834 | W165: 0 | X165: 2192191 | Y165: 2192191 | Z165: 0 | AA165: 293539 | AB165: 293539 | AC165: 0 | AD165: 2352 | AE165: 3223 | AF165: جمله المبيعات | AG165: 7580496 | AH165: 0 | AI165: 2391525 | AJ165: 100000 | AK165: 5088971 | AL165: 0
A166: 2024-09-17 | B166: 2024 | C166: 9 | D166: ودشرف | E166: بنزين | F166: 5539878 | G166: 5539878 | H166: 0 | I166: 5948708 | J166: 5948708 | K166: 0 | L166: 70833 | M166: 70833 | N166: 0 | O166: 102324 | P166: 102324 | Q166: 0 | R166: 84104 | S166: 84104 | T166: 0 | U166: 4215834 | V166: 4218451 | W166: 2617 | X166: 2192191 | Y166: 2192535 | Z166: 344 | AA166: 293539 | AB166: 293628 | AC166: 89 | AD166: 3050 | AE166: 3236 | AF166: جمله المبيعات | AG166: 9869800 | AH166: 0 | AI166: 143000 | AJ166: 66000 | AK166: 9660000 | AL166: -800
A167: 2024-09-18 | B167: 2024 | C167: 9 | D167: ودشرف | E167: جاز | F167: 5539878 | G167: 5541822 | H167: 1944 | I167: 5948708 | J167: 5949276 | K167: 568 | L167: 70833 | M167: 70833 | N167: 0 | O167: 102324 | P167: 102324 | Q167: 0 | R167: 84104 | S167: 84104 | T167: 0 | U167: 4218451 | V167: 4218451 | W167: 0 | X167: 2192535 | Y167: 2192535 | Z167: 0 | AA167: 293628 | AB167: 293628 | AC167: 0 | AD167: 2512 | AE167: 3223 | AF167: جمله المبيعات | AG167: 8096176 | AH167: 0 | AI167: 1650000 | AJ167: 1923000 | AK167: 4523000 | AL167: -176
A168: 2024-09-18 | B168: 2024 | C168: 9 | D168: محمدابدول | E168: بنزين | F168: 5541822 | G168: 5541822 | H168: 0 | I168: 5949276 | J168: 5949276 | K168: 0 | L168: 70833 | M168: 70833 | N168: 0 | O168: 102324 | P168: 102324 | Q168: 0 | R168: 84104 | S168: 84104 | T168: 0 | U168: 4218451 | V168: 4220533 | W168: 2082 | X168: 2192535 | Y168: 2192699 | Z168: 164 | AA168: 293628 | AB168: 294216 | AC168: 588 | AD168: 2834 | AE168: 3236 | AF168: جمله المبيعات | AG168: 9170824 | AH168: 0 | AI168: 1800200 | AJ168: 1260000 | AK168: 6109624 | AL168: -1000
A169: 2024-09-19 | B169: 2024 | C169: 9 | D169: بنجوس | E169: بنزين | F169: 5541822 | G169: 5541822 | H169: 0 | I169: 5949276 | J169: 5949276 | K169: 0 | L169: 70833 | M169: 70833 | N169: 0 | O169: 102324 | P169: 102324 | Q169: 0 | R169: 84104 | S169: 84104 | T169: 0 | U169: 4220533 | V169: 4223305 | W169: 2772 | X169: 2192699 | Y169: 2192957 | Z169: 258 | AA169: 294216 | AB169: 295311 | AC169: 1095 | AD169: 4125 | AE169: 3236 | AF169: جمله المبيعات | AG169: 13348500 | AH169: 0 | AI169: 477157 | AJ169: 100000 | AK169: 12771500 | AL169: 157
A170: 2024-09-20 | B170: 2024 | C170: 9 | D170: كبشور | E170: بنزين | F170: 5541822 | G170: 5541822 | H170: 0 | I170: 5949276 | J170: 5949276 | K170: 0 | L170: 70833 | M170: 70833 | N170: 0 | O170: 102324 | P170: 102324 | Q170: 0 | R170: 84104 | S170: 84104 | T170: 0 | U170: 4223305 | V170: 4224783 | W170: 1478 | X170: 2192957 | Y170: 2193679 | Z170: 722 | AA170: 295311 | AB170: 296442 | AC170: 1131 | AD170: 3331 | AE170: 3236 | AF170: جمله المبيعات | AG170: 10779116 | AH170: 0 | AI170: 3183200 | AJ170: 100000 | AK170: 7495800 | AL170: -116
A171: 2024-09-20 | B171: 2024 | C171: 9 | D171: بنجوس | E171: جاز | F171: 5541822 | G171: 5542896 | H171: 1074 | I171: 5949276 | J171: 5949910 | K171: 634 | L171: 70833 | M171: 70833 | N171: 0 | O171: 102324 | P171: 102324 | Q171: 0 | R171: 84104 | S171: 84104 | T171: 0 | U171: 4224783 | V171: 4224783 | W171: 0 | X171: 2193679 | Y171: 2193679 | Z171: 0 | AA171: 296442 | AB171: 296442 | AC171: 0 | AD171: 1708 | AE171: 3223 | AF171: جمله المبيعات | AG171: 5504884 | AH171: 0 | AI171: 60000 | AJ171: 1400000 | AK171: 4048500 | AL171: 3616
A172: 2024-09-21 | B172: 2024 | C172: 9 | D172: محمدابدول | E172: جاز | F172: 5542896 | G172: 5544057 | H172: 1161 | I172: 5949910 | J172: 5950784 | K172: 874 | L172: 70833 | M172: 71100 | N172: 267 | O172: 102324 | P172: 102363 | Q172: 39 | R172: 84104 | S172: 84104 | T172: 0 | U172: 4224783 | V172: 4224783 | W172: 0 | X172: 2193679 | Y172: 2193679 | Z172: 0 | AA172: 296442 | AB172: 296442 | AC172: 0 | AD172: 2341 | AE172: 3223 | AF172: جمله المبيعات | AG172: 7545043 | AH172: 1240000 | AI172: 138589 | AJ172: 0 | AK172: 6166454 | AL172: 0
A173: 2024-09-21 | B173: 2024 | C173: 9 | D173: ودشرف | E173: بنزين | F173: 5544057 | G173: 5544057 | H173: 0 | I173: 5950784 | J173: 5950784 | K173: 0 | L173: 71100 | M173: 71100 | N173: 0 | O173: 102363 | P173: 102363 | Q173: 0 | R173: 84104 | S173: 84104 | T173: 0 | U173: 4224783 | V173: 4226465 | W173: 1682 | X173: 2193679 | Y173: 2193965 | Z173: 286 | AA173: 296442 | AB173: 297421 | AC173: 979 | AD173: 2947 | AE173: 3236 | AF173: جمله المبيعات | AG173: 9536492 | AH173: 0 | AI173: 36800 | AJ173: 500000 | AK173: 8999500 | AL173: -192
A174: 2024-09-22 | B174: 2024 | C174: 9 | D174: ودشرف | E174: جاز | F174: 5544057 | G174: 5546178 | H174: 2121 | I174: 5950784 | J174: 5951443 | K174: 659 | L174: 71100 | M174: 71100 | N174: 0 | O174: 102363 | P174: 102363 | Q174: 0 | R174: 84104 | S174: 84104 | T174: 0 | U174: 4226465 | V174: 4226465 | W174: 0 | X174: 2193965 | Y174: 2193965 | Z174: 0 | AA174: 297421 | AB174: 297421 | AC174: 0 | AD174: 2780 | AE174: 3223 | AF174: جمله المبيعات | AG174: 8959940 | AH174: 0 | AI174: 215500 | AJ174: 430000 | AK174: 8315000 | AL174: 560
A175: 2024-09-22 | B175: 2024 | C175: 9 | D175: محمدابدول | E175: بنزين | F175: 5546178 | G175: 5546178 | H175: 0 | I175: 5951443 | J175: 5951443 | K175: 0 | L175: 71100 | M175: 71100 | N175: 0 | O175: 102363 | P175: 102363 | Q175: 0 | R175: 84104 | S175: 84104 | T175: 0 | U175: 4226465 | V175: 4228681 | W175: 2216 | X175: 2193965 | Y175: 2194214 | Z175: 249 | AA175: 297421 | AB175: 298589 | AC175: 1168 | AD175: 3633 | AE175: 3236 | AF175: جمله المبيعات | AG175: 11756388 | AH175: 3000000 | AI175: 12100 | AJ175: 1416000 | AK175: 7328288 | AL175: 0
A176: 2024-09-23 | B176: 2024 | C176: 9 | D176: كبشور | E176: جاز | F176: 5546178 | G176: 5546663 | H176: 485 | I176: 5951443 | J176: 5952184 | K176: 741 | L176: 71100 | M176: 71800 | N176: 700 | O176: 102363 | P176: 102940 | Q176: 577 | R176: 84104 | S176: 84104 | T176: 0 | U176: 4228681 | V176: 4228681 | W176: 0 | X176: 2194214 | Y176: 2194214 | Z176: 0 | AA176: 298589 | AB176: 298589 | AC176: 0 | AD176: 2503 | AE176: 3223 | AF176: جمله المبيعات | AG176: 8067169 | AH176: 0 | AI176: 40000 | AJ176: 710000 | AK176: 7317000 | AL176: -169
A177: 2024-09-23 | B177: 2024 | C177: 9 | D177: بنجوس | E177: بنزين | F177: 5546663 | G177: 5546663 | H177: 0 | I177: 5952184 | J177: 5952184 | K177: 0 | L177: 71800 | M177: 71800 | N177: 0 | O177: 102940 | P177: 102940 | Q177: 0 | R177: 84104 | S177: 84104 | T177: 0 | U177: 4228681 | V177: 4230858 | W177: 2177 | X177: 2194214 | Y177: 2194521 | Z177: 307 | AA177: 298589 | AB177: 299233 | AC177: 644 | AD177: 3128 | AE177: 3236 | AF177: جمله المبيعات | AG177: 10122208 | AH177: 0 | AI177: 236700 | AJ177: 126000 | AK177: 9760000 | AL177: 492
A178: 2024-09-24 | B178: 2024 | C178: 9 | D178: كبشور | E178: بنزين | F178: 5546663 | G178: 5546663 | H178: 0 | I178: 5952184 | J178: 5952184 | K178: 0 | L178: 71800 | M178: 71800 | N178: 0 | O178: 102940 | P178: 102940 | Q178: 0 | R178: 84104 | S178: 84104 | T178: 0 | U178: 4230858 | V178: 4232720 | W178: 1862 | X178: 2194521 | Y178: 2194980 | Z178: 459 | AA178: 299233 | AB178: 299854 | AC178: 621 | AD178: 2942 | AE178: 3236 | AF178: جمله المبيعات | AG178: 9520312 | AI178: 1000300 | AJ178: 316000 | AK178: 8204000 | AL178: -12
A179: 2024-09-24 | B179: 2024 | C179: 9 | D179: بنجوس | E179: جاز | F179: 5546663 | G179: 5548222 | H179: 1559 | I179: 5952184 | J179: 5953126 | K179: 942 | L179: 71800 | M179: 71918 | N179: 118 | O179: 102940 | P179: 103157 | Q179: 217 | R179: 84104 | S179: 84104 | T179: 0 | U179: 4232720 | V179: 4232720 | W179: 0 | X179: 2194980 | Y179: 2194980 | Z179: 0 | AA179: 299854 | AB179: 299854 | AC179: 0 | AD179: 2836 | AE179: 3223 | AF179: جمله المبيعات | AG179: 9140428 | AH179: 0 | AI179: 0 | AJ179: 420000 | AK179: 8720500 | AL179: 72
A180: 2024-09-25 | B180: 2024 | C180: 9 | D180: ودشرف | E180: بنزين | F180: 5548222 | G180: 5548222 | H180: 0 | I180: 5953126 | J180: 5953126 | K180: 0 | L180: 71918 | M180: 71918 | N180: 0 | O180: 103157 | P180: 103157 | Q180: 0 | R180: 84104 | S180: 84104 | T180: 0 | U180: 4232720 | V180: 4234690 | W180: 1970 | X180: 2194980 | Y180: 2195124 | Z180: 144 | AA180: 299854 | AB180: 301008 | AC180: 1154 | AD180: 3268 | AE180: 3140.23 | AF180: جمله المبيعات | AG180: 10262271 | AH180: 650000 | AI180: 95900 | AJ180: 0 | AK180: 9516000 | AL180: -371
A181: 2024-09-25 | B181: 2024 | C181: 9 | D181: محمدابدول | E181: جاز | F181: 5548222 | G181: 5549111 | H181: 889 | I181: 5953126 | J181: 5954433 | K181: 1307 | L181: 71918 | M181: 72416 | N181: 498 | O181: 103157 | P181: 103328 | Q181: 171 | R181: 84104 | S181: 84104 | T181: 0 | U181: 4234690 | V181: 4234690 | W181: 0 | X181: 2195124 | Y181: 2195124 | Z181: 0 | AA181: 301008 | AB181: 301008 | AC181: 0 | AD181: 2865 | AE181: 3223 | AF181: جمله المبيعات | AG181: 9233895 | AH181: 1699300 | AI181: 2330000 | AJ181: 180000 | AK181: 5024559 | AL181: -36
A182: 2024-09-26 | B182: 2024 | C182: 9 | D182: ودشرف | E182: جاز | F182: 5549111 | G182: 5550821 | H182: 1710 | I182: 5954433 | J182: 5955123 | K182: 690 | L182: 72416 | M182: 72432 | N182: 16 | O182: 103328 | P182: 103724 | Q182: 396 | R182: 84104 | S182: 84104 | T182: 0 | U182: 4234690 | V182: 4234690 | W182: 0 | X182: 2195124 | Y182: 2195124 | Z182: 0 | AA182: 301008 | AB182: 301008 | AC182: 0 | AD182: 2812 | AE182: 3223 | AF182: جمله المبيعات | AG182: 9063076 | AH182: 3801000 | AI182: 0 | AJ182: 0 | AK182: 5262000 | AL182: -76
A183: 2024-09-26 | B183: 2024 | C183: 9 | D183: محمدابدول | E183: بنزين | F183: 5550821 | G183: 5550821 | H183: 0 | I183: 5955123 | J183: 5955123 | K183: 0 | L183: 72432 | M183: 72432 | N183: 0 | O183: 103724 | P183: 103724 | Q183: 0 | R183: 84104 | S183: 84104 | T183: 0 | U183: 4234690 | V183: 4236824 | W183: 2134 | X183: 2195124 | Y183: 2195206 | Z183: 82 | AA183: 301008 | AB183: 301909 | AC183: 901 | AD183: 3117 | AE183: 3119 | AF183: جمله المبيعات | AG183: 9721923 | AH183: 3120000 | AI183: 3073100 | AJ183: 500000 | AK183: 3028823 | AL183: 0
A184: 2024-09-27 | B184: 2024 | C184: 9 | D184: كبشور | E184: جاز | F184: 5550821 | G184: 5552467 | H184: 1646 | I184: 5955123 | J184: 5955202 | K184: 79 | L184: 72432 | M184: 72560 | N184: 128 | O184: 103724 | P184: 103780 | Q184: 56 | R184: 84104 | S184: 84104 | T184: 0 | U184: 4236824 | V184: 4236824 | W184: 0 | X184: 2195206 | Y184: 2195206 | Z184: 0 | AA184: 301909 | AB184: 301909 | AC184: 0 | AD184: 1909 | AE184: 3223 | AF184: جمله المبيعات | AG184: 6152707 | AH184: 0 | AI184: 30000 | AJ184: 0 | AK184: 6123000 | AL184: 293
A185: 2024-09-27 | B185: 2024 | C185: 9 | D185: بنجوس | E185: بنزين | F185: 5552467 | G185: 5552467 | H185: 0 | I185: 5955202 | J185: 5955202 | K185: 0 | L185: 72560 | M185: 72560 | N185: 0 | O185: 103780 | P185: 103780 | Q185: 0 | R185: 84104 | S185: 84104 | T185: 0 | U185: 4236824 | V185: 4238477 | W185: 1653 | X185: 2195206 | Y185: 2195417 | Z185: 211 | AA185: 301909 | AB185: 302568 | AC185: 659 | AD185: 2523 | AE185: 3119 | AF185: جمله المبيعات | AG185: 7869237 | AH185: 0 | AI185: 25000 | AJ185: 0 | AK185: 7844500 | AL185: 263
A186: 2024-09-28 | B186: 2024 | C186: 9 | D186: بنجوس | E186: جاز | F186: 5552467 | G186: 5555174 | H186: 2707 | I186: 5955202 | J186: 5955202 | K186: 0 | L186: 72560 | M186: 73162 | N186: 602 | O186: 103780 | P186: 103817 | Q186: 37 | R186: 84104 | S186: 84104 | T186: 0 | U186: 4238477 | V186: 4238477 | W186: 0 | X186: 2195417 | Y186: 2195417 | Z186: 0 | AA186: 302568 | AB186: 302568 | AC186: 0 | AD186: 3346 | AE186: 3223 | AF186: جمله المبيعات | AG186: 10784158 | AH186: 0 | AI186: 1650000 | AJ186: 0 | AK186: 9134500 | AL186: 342
A187: 2024-09-28 | B187: 2024 | C187: 9 | D187: كبشور | E187: بنزين | F187: 5555174 | G187: 5555174 | H187: 0 | I187: 5955202 | J187: 5955202 | K187: 0 | L187: 73162 | M187: 73162 | N187: 0 | O187: 103817 | P187: 103817 | Q187: 0 | R187: 84104 | S187: 84104 | T187: 0 | U187: 4238477 | V187: 4240942 | W187: 2465 | X187: 2195417 | Y187: 2195741 | Z187: 324 | AA187: 302568 | AB187: 303355 | AC187: 787 | AD187: 3576 | AE187: 3119 | AF187: جمله المبيعات | AG187: 11153544 | AH187: 0 | AI187: 262900 | AJ187: 250000 | AK187: 10641000 | AL187: 356
A188: 2024-09-29 | B188: 2024 | C188: 9 | D188: محمدابدول | E188: جاز | F188: 5555174 | G188: 5557371 | H188: 2197 | I188: 5955202 | J188: 5955202 | K188: 0 | L188: 73162 | M188: 73635 | N188: 473 | O188: 103817 | P188: 103914 | Q188: 97 | R188: 84104 | S188: 84104 | T188: 0 | U188: 4240942 | V188: 4240942 | W188: 0 | X188: 2195741 | Y188: 2195741 | Z188: 0 | AA188: 303355 | AB188: 303355 | AC188: 0 | AD188: 2767 | AE188: 3223 | AF188: جمله المبيعات | AG188: 8918041 | AH188: 0 | AI188: 50000 | AJ188: 0 | AK188: 8868041 | AL188: 0
A189: 2024-09-29 | B189: 2024 | C189: 9 | D189: ودشرف | E189: بنزين | F189: 5557371 | G189: 5557371 | H189: 0 | I189: 5955202 | J189: 5955202 | K189: 0 | L189: 73635 | M189: 73635 | N189: 0 | O189: 103914 | P189: 103914 | Q189: 0 | R189: 84104 | S189: 84104 | T189: 0 | U189: 4240942 | V189: 4243148 | W189: 2206 | X189: 2195741 | Y189: 2195845 | Z189: 104 | AA189: 303355 | AB189: 304131 | AC189: 776 | AD189: 3086 | AE189: 3119 | AF189: جمله المبيعات | AG189: 9625234 | AH189: 0 | AI189: 5485700 | AJ189: 50000 | AK189: 4089500 | AL189: -34
A190: 2024-09-30 | B190: 2024 | C190: 9 | D190: ودشرف | E190: جاز | F190: 5557371 | G190: 5560023 | H190: 2652 | I190: 5955202 | J190: 5955202 | K190: 0 | L190: 73635 | M190: 73772 | N190: 137 | O190: 103914 | P190: 103979 | Q190: 65 | R190: 84104 | S190: 84104 | T190: 0 | U190: 4243148 | V190: 4243148 | W190: 0 | X190: 2195845 | Y190: 2195845 | Z190: 0 | AA190: 304131 | AB190: 304131 | AC190: 0 | AD190: 2854 | AE190: 3223 | AF190: جمله المبيعات | AG190: 9198442 | AH190: 0 | AI190: 0 | AJ190: 1065500 | AK190: 8132000 | AL190: -942
A191: 2024-09-30 | B191: 2024 | C191: 9 | D191: محمدابدول | E191: بنزين | F191: 5560023 | G191: 5560023 | H191: 0 | I191: 5955202 | J191: 5955202 | K191: 0 | L191: 73772 | M191: 73772 | N191: 0 | O191: 103979 | P191: 103979 | Q191: 0 | R191: 84104 | S191: 84104 | T191: 0 | U191: 4243148 | V191: 4244963 | W191: 1815 | X191: 2195845 | Y191: 2195976 | Z191: 131 | AA191: 304131 | AB191: 305043 | AC191: 912 | AD191: 2858 | AE191: 3119 | AF191: جمله المبيعات | AG191: 8914102 | AH191: 0 | AI191: 937200 | AJ191: 600000 | AK191: 7376902 | AL191: 0
A192: 2024-10-01 | B192: 2024 | C192: 10 | D192: بنجوس | E192: بنزين | F192: 5560023 | G192: 5560023 | H192: 0 | I192: 5955202 | J192: 5955202 | K192: 0 | L192: 73772 | M192: 73772 | N192: 0 | O192: 103979 | P192: 103979 | Q192: 0 | R192: 84104 | S192: 84104 | T192: 0 | U192: 4244963 | V192: 4247172 | W192: 2209 | X192: 2195976 | Y192: 2196395 | Z192: 419 | AA192: 305043 | AB192: 306418 | AC192: 1375 | AD192: 4003 | AE192: 3119 | AF192: جمله المبيعات | AG192: 12485357 | AH192: 0 | AI192: 24833 | AJ192: 3260000 | AK192: 9201000 | AL192: 476
A193: 2024-10-01 | B193: 2024 | C193: 10 | D193: كبشور | E193: جاز | F193: 5560023 | G193: 5560270 | H193: 247 | I193: 5955202 | J193: 5955202 | K193: 0 | L193: 73772 | M193: 75157 | N193: 1385 | O193: 103979 | P193: 105415 | Q193: 1436 | R193: 84104 | S193: 84104 | T193: 0 | U193: 4247172 | V193: 4247172 | W193: 0 | X193: 2196395 | Y193: 2196395 | Z193: 0 | AA193: 306418 | AB193: 306418 | AC193: 0 | AD193: 3068 | AE193: 3223 | AF193: جمله المبيعات | AG193: 9888164 | AH193: 0 | AI193: 0 | AJ193: 680000 | AK193: 9208000 | AL193: -164
A194: 2024-10-02 | B194: 2024 | C194: 10 | D194: بنجوس | E194: جاز | F194: 5560270 | G194: 5560270 | H194: 0 | I194: 5955202 | J194: 5955202 | K194: 0 | L194: 75157 | M194: 76446 | N194: 1289 | O194: 105415 | P194: 107104 | Q194: 1689 | R194: 84104 | S194: 84104 | T194: 0 | U194: 4247172 | V194: 4247172 | W194: 0 | X194: 2196395 | Y194: 2196395 | Z194: 0 | AA194: 306418 | AB194: 306418 | AC194: 0 | AD194: 2978 | AE194: 3223 | AF194: جمله المبيعات | AG194: 9598094 | AH194: 0 | AI194: 58000 | AJ194: 975000 | AK194: 8565500 | AL194: 406
A195: 2024-10-02 | B195: 2024 | C195: 10 | D195: كبشور | E195: بنزين | F195: 5560270 | G195: 5560270 | H195: 0 | I195: 5955202 | J195: 5955202 | K195: 0 | L195: 76446 | M195: 76446 | N195: 0 | O195: 107104 | P195: 107104 | Q195: 0 | R195: 84104 | S195: 84104 | T195: 0 | U195: 4247172 | V195: 4249050 | W195: 1878 | X195: 2196395 | Y195: 2197044 | Z195: 649 | AA195: 306418 | AB195: 307771 | AC195: 1353 | AD195: 3880 | AE195: 3119 | AF195: جمله المبيعات | AG195: 12101720 | AH195: 0 | AI195: 3783900 | AJ195: 250000 | AK195: 8068000 | AL195: 180
A196: 2024-10-03 | B196: 2024 | C196: 10 | D196: ودشرف | E196: بنزين | F196: 5560270 | G196: 5560270 | H196: 0 | I196: 5955202 | J196: 5955202 | K196: 0 | L196: 76446 | M196: 76446 | N196: 0 | O196: 107104 | P196: 107104 | Q196: 0 | R196: 84104 | S196: 84104 | T196: 0 | U196: 4249050 | V196: 4251381 | W196: 2331 | X196: 2197044 | Y196: 2197546 | Z196: 502 | AA196: 307771 | AB196: 308310 | AC196: 539 | AD196: 3372 | AE196: 3119 | AF196: جمله المبيعات | AG196: 10517268 | AH196: 0 | AI196: 194900 | AJ196: 900000 | AK196: 9422000 | AL196: -368
A197: 2024-10-03 | B197: 2024 | C197: 10 | D197: محمدابدول | E197: جاز | F197: 5560270 | G197: 5560270 | H197: 0 | I197: 5955202 | J197: 5955202 | K197: 0 | L197: 76446 | M197: 78242 | N197: 1796 | O197: 107104 | P197: 108042 | Q197: 938 | R197: 84104 | S197: 84104 | T197: 0 | U197: 4251381 | V197: 4251381 | W197: 0 | X197: 2197546 | Y197: 2197546 | Z197: 0 | AA197: 308310 | AB197: 308310 | AC197: 0 | AD197: 2734 | AE197: 3223 | AF197: جمله المبيعات | AG197: 8811682 | AH197: 0 | AI197: 0 | AJ197: 115000 | AK197: 8696682 | AL197: 0
A198: 2024-10-04 | B198: 2024 | C198: 10 | D198: ودشرف | E198: جاز | F198: 5560270 | G198: 5560270 | H198: 0 | I198: 5955202 | J198: 5955202 | K198: 0 | L198: 78242 | M198: 79074 | N198: 832 | O198: 108042 | P198: 109242 | Q198: 1200 | R198: 84104 | S198: 84104 | T198: 0 | U198: 4251381 | V198: 4251381 | W198: 0 | X198: 2197546 | Y198: 2197546 | Z198: 0 | AA198: 308310 | AB198: 308310 | AC198: 0 | AD198: 2032 | AE198: 3223 | AF198: جمله المبيعات | AG198: 6549136 | AH198: 0 | AI198: 50000 | AJ198: 0 | AK198: 6499000 | AL198: -136
A199: 2024-10-04 | B199: 2024 | C199: 10 | D199: محمدابدول | E199: بنزين | F199: 5560270 | G199: 5560270 | H199: 0 | I199: 5955202 | J199: 5955202 | K199: 0 | L199: 79074 | M199: 79074 | N199: 0 | O199: 109242 | P199: 109242 | Q199: 0 | R199: 84104 | S199: 84104 | T199: 0 | U199: 4251381 | V199: 4278236 | W199: 26855 | X199: 2197044 | Y199: 2197728 | Z199: 684 | AA199: 308310 | AB199: 308855 | AC199: 545 | AD199: 28084 | AE199: 3119 | AF199: جمله المبيعات | AG199: 87593996 | AH199: 0 | AI199: 83824054 | AJ199: 250000 | AK199: 3519942 | AL199: =IFERROR((AH199+AI199+AJ199+AK199)-AG199,"") -> 0
A200: 2024-10-05 | B200: =IF(A200<>"",YEAR(A200),"") -> 2024 | C200: =IF(A200<>"",MONTH(A200),"") -> 10 | D200: كبشور | E200: جاز | F200: 5560270 | G200: 5560270 | H200: 0 | I200: 5955202 | J200: 5955202 | K200: 0 | L200: =IF($A200<>"",IF($E200<>"توريده",M199,0),"") -> 79074 | M200: 80784 | N200: 1710 | O200: =IF($A200<>"",IF($E200<>"توريده",P199,0),"") -> 109242 | P200: 111325 | Q200: 2083 | R200: =IF($A200<>"",IF($E200<>"توريده",S199,0),"") -> 84104 | S200: 84104 | T200: 0 | U200: 4278236 | V200: 4278236 | W200: 0 | X200: =IF($A200<>"",IF($E200<>"توريده",Y199,0),"") -> 2197728 | Y200: 2197728 | Z200: 0 | AA200: =IF($A200<>"",IF($E200<>"توريده",AB199,0),"") -> 308855 | AB200: 308855 | AC200: 0 | AD200: 3793 | AE200: 3223 | AF200: جمله المبيعات | AG200: =IFERROR(ROUNDDOWN(IF(A200<>"",IF(E200="توريده","",AD200*AE200),""),0),"") -> 12224839 | AH200: 0 | AI200: 0 | AJ200: 250000 | AK200: 11975000 | AL200: 161
... 66 more rows
